{"text_format":"1","workbook":"xlsx","n_sheets":4,"sheets":["IN-1","ZIN-1","ZIN-2","ZIN-3"],"not_rendered":{"charts":0,"images":17,"macros":1,"external_links":0,"defined_names":4,"comments":0,"pivot_tables":0},"unopened":[],"bounds":{"document_bytes":16777216,"sheet_cells":100000,"rows_first":2000,"rows_last":500,"rows_between":2000,"halvings":0,"cell_chars":16384,"cell_head_chars":4096},"cells_cut":0,"cells_raw":0,"read":"whole","date_system":"1900"}

{"sheet":"IN-1","index":0,"n_rows":285,"n_cols":29,"rows_kept":285,"cut":false,"hidden":false,"merged":[[284,2,284,19],[284,20,284,22],[225,3,225,23],[226,3,226,23],[227,3,227,23],[230,2,230,23],[228,2,228,23],[229,2,229,23],[222,3,222,23],[223,3,223,23],[224,3,224,23],[221,2,221,23],[193,3,193,23],[219,2,219,23],[202,2,202,23],[207,2,207,23],[198,3,198,14],[200,15,200,23],[2,2,2,23],[3,2,3,23],[4,2,4,23],[7,2,7,23],[8,2,8,23],[220,2,220,23],[9,2,9,23],[18,2,18,23],[19,2,19,23],[26,2,26,23],[47,2,47,23],[54,2,54,23],[41,3,41,8],[42,3,42,8],[41,9,41,17],[42,9,42,17],[41,18,41,23],[42,18,42,23],[27,2,27,23],[217,2,217,23],[5,2,5,5],[5,6,5,9],[5,10,5,13],[6,2,6,3],[6,4,6,13],[177,3,177,19],[180,3,180,19],[181,3,181,19],[184,3,184,23],[203,15,203,23],[183,2,183,23],[187,2,187,23],[188,2,188,23],[194,2,194,23],[190,15,190,23],[198,15,198,23],[135,20,135,23],[136,20,136,23],[137,20,137,23],[138,20,138,23],[185,19,185,23],[186,19,186,20],[182,2,182,23],[5,14,6,23],[20,3,20,23],[28,3,28,23],[23,3,23,10],[23,17,23,23],[25,3,25,12],[25,13,25,15],[25,16,25,17],[25,18,25,23],[10,2,10,4],[21,3,21,23],[22,3,22,23],[24,3,24,23],[23,11,23,16],[10,5,10,23],[12,2,12,4],[12,5,12,23],[11,5,11,23],[13,2,13,4],[30,2,30,23],[31,2,31,23],[32,2,32,23],[38,3,38,11],[33,3,33,14],[34,3,34,14],[33,15,33,23],[34,15,34,23],[35,3,35,23],[36,3,36,23],[37,2,37,23],[46,3,46,14],[45,15,45,23],[46,15,46,23],[43,3,43,9],[44,3,44,9],[43,10,43,20],[44,10,44,20],[39,3,39,11],[38,12,38,18],[39,12,39,18],[38,19,38,23],[39,19,39,23],[43,22,43,23],[40,2,40,23],[84,3,84,23],[77,2,77,23],[81,20,81,23],[82,20,82,23],[85,20,85,23],[86,20,86,23],[78,3,78,23],[89,2,89,23],[64,2,64,23],[72,20,72,23],[73,20,76,23],[79,20,79,23],[95,20,95,23],[96,20,96,23],[124,7,124,19],[109,2,109,23],[112,1,112,24],[90,3,90,23],[94,20,94,23],[92,3,92,23],[93,3,93,23],[108,20,108,23],[111,2,111,23],[113,2,113,23],[114,2,114,23],[115,2,115,23],[119,20,119,23],[120,20,120,23],[121,20,121,23],[122,20,122,23],[123,20,123,23],[124,20,124,23],[125,20,125,23],[126,20,126,23],[127,20,127,23],[128,20,128,23],[103,20,103,23],[104,20,104,23],[105,20,105,23],[106,20,106,23],[107,20,107,23],[118,20,118,23],[116,20,116,23],[117,20,117,23],[141,20,141,23],[142,20,142,23],[143,20,143,23],[144,20,144,23],[145,20,145,23],[148,20,148,23],[129,20,129,23],[130,20,130,23],[131,20,131,23],[134,20,134,23],[133,3,133,23],[131,7,131,19],[131,3,131,6],[134,3,134,19],[132,2,132,23],[139,20,139,23],[140,20,140,23],[156,20,156,23],[149,20,149,23],[150,20,150,23],[147,3,147,23],[145,7,145,19],[148,3,148,19],[149,3,149,19],[150,3,150,6],[146,2,146,23],[172,20,172,23],[168,2,168,23],[164,2,164,23],[165,2,165,23],[166,2,166,23],[167,2,167,23],[160,2,160,23],[163,1,163,24],[169,20,169,23],[138,3,138,6],[94,3,94,19],[140,3,140,19],[141,3,141,19],[185,12,185,18],[185,3,185,11],[145,3,145,6],[156,7,156,19],[158,3,158,6],[159,3,159,6],[139,7,139,19],[139,3,139,6],[136,3,136,6],[137,3,137,6],[123,7,123,19],[97,7,97,19],[95,3,95,19],[96,3,96,19],[204,3,204,14],[204,15,204,23],[205,3,205,14],[205,15,205,23],[199,3,199,14],[199,15,199,23],[203,3,203,14],[175,3,175,23],[201,3,201,14],[201,15,201,23],[197,3,197,23],[186,22,186,23],[186,3,186,11],[195,2,195,23],[196,2,196,23],[200,3,200,14],[191,15,191,23],[190,3,190,14],[191,3,191,14],[186,12,186,18],[177,20,177,23],[180,20,180,23],[181,20,181,23],[215,2,215,23],[216,2,216,4],[216,5,216,7],[216,8,216,23],[161,2,161,19],[100,3,100,6],[107,3,107,19],[108,3,108,19],[116,3,116,6],[110,8,110,23],[210,3,210,14],[210,15,210,23],[211,3,211,14],[211,15,211,23],[214,3,214,23],[212,2,212,23],[213,2,213,23],[206,3,206,14],[206,15,206,23],[208,3,208,14],[208,15,208,23],[209,3,209,14],[209,15,209,23],[192,3,192,23],[17,2,17,4],[17,5,17,23],[65,2,65,19],[55,2,55,19],[55,20,55,22],[66,20,66,23],[29,3,29,4],[13,5,13,23],[14,2,14,4],[14,5,14,23],[15,2,15,4],[15,5,15,23],[16,2,16,4],[16,5,16,23],[56,2,56,23],[58,2,58,23],[59,2,59,23],[60,2,60,23],[57,1,57,24],[52,15,52,23],[53,3,53,14],[53,15,53,23],[62,2,62,23],[63,2,63,23],[29,5,29,12],[29,13,29,23],[52,3,52,14],[67,20,67,23],[65,20,65,23],[61,2,61,23],[66,3,66,19],[67,3,67,19],[69,20,69,23],[68,20,68,23],[50,3,50,9],[50,10,50,20],[50,22,50,23],[51,3,51,9],[51,10,51,20],[51,22,51,23],[48,3,48,8],[48,9,48,17],[48,18,48,23],[49,3,49,8],[49,9,49,17],[49,18,49,23],[44,22,44,23],[45,3,45,14],[76,3,76,19],[91,3,91,23],[79,3,79,19],[80,3,80,19],[81,3,81,19],[82,3,82,19],[88,20,88,23],[83,2,83,23],[68,3,68,19],[69,3,69,19],[72,3,72,19],[73,3,73,19],[74,3,74,19],[75,3,75,19],[70,20,70,23],[71,20,71,23],[70,3,70,19],[71,3,71,19],[85,3,85,19],[86,3,86,19],[87,3,87,19],[88,3,88,19],[80,20,80,23],[87,20,87,23],[98,3,98,6],[99,3,99,6],[100,7,100,19],[98,7,98,19],[99,7,99,19],[106,7,106,19],[97,20,97,23],[101,3,101,19],[102,3,102,19],[103,3,103,6],[105,7,105,19],[103,7,103,19],[104,3,104,6],[104,7,104,19],[105,3,105,6],[97,3,97,6],[99,20,99,23],[100,20,100,23],[101,20,101,23],[98,20,98,23],[102,20,102,23],[110,5,110,7],[110,2,110,4],[106,3,106,6],[117,3,117,6],[122,3,122,6],[116,7,116,19],[117,7,117,19],[120,3,120,19],[121,3,121,19],[122,7,122,19],[135,3,135,19],[128,7,128,19],[129,7,129,19],[130,7,130,19],[126,3,126,19],[127,3,127,19],[128,3,128,6],[118,3,119,6],[118,7,118,19],[119,7,119,19],[129,3,129,6],[130,3,130,6],[125,3,125,6],[125,7,125,19],[124,3,124,6],[159,7,159,19],[162,2,162,23],[161,20,161,22],[157,20,157,23],[158,20,158,23],[144,3,144,6],[142,7,142,19],[143,7,143,19],[144,7,144,19],[142,3,142,6],[143,3,143,6],[155,3,155,19],[150,7,150,19],[151,7,151,19],[152,7,152,19],[153,7,153,19],[151,3,151,6],[154,3,154,19],[159,20,159,23],[151,20,151,23],[152,20,152,23],[153,20,153,23],[154,20,154,23],[155,20,155,23],[176,3,176,19],[0,0,0,25],[1,2,1,23],[179,3,179,23],[189,3,189,23],[152,3,152,6],[153,3,153,6],[156,3,156,6],[157,3,157,6],[123,3,123,6],[136,7,136,19],[137,7,137,19],[138,7,138,19],[172,3,172,19],[173,3,173,19],[178,2,178,23],[169,2,171,19],[173,20,173,23],[176,20,176,23],[174,2,174,23],[170,20,170,23],[171,20,171,23],[157,7,157,19],[158,7,158,19]]}
["Uruchamianie przycisków i opcji (q) wymaga włączenia makro",null,null,null,null,null,null,null,null,null,null,null,null,null,null,null,null,null,null,null,null,null,null,null,null,null,"POLSKA","PL","DOLNOŚLĄSKIE"]
[null,null,null,null,null,null,null,null,null,null,null,null,null,null,null,null,null,null,null,null,null,null,null,null,null,null,"AFGANISTAN","AF","KUJAWSKO-POMORSKIE"]
[null,null,null,null,null,null,null,null,null,null,null,null,null,null,null,null,null,null,null,null,null,null,null,null,null,null,"ALAND ISLANDS","AX","LUBELSKIE"]
[null,null," WYPEŁNIĆ DUŻYMI, DRUKOWANYMI LITERAMI, CZARNYM LUB NIEBIESKIM KOLOREM.",null,null,null,null,null,null,null,null,null,null,null,null,null,null,null,null,null,null,null,null,null,null,null,"ALBANIA","AL","LUBUSKIE"]
[null,null,null,null,null,null,null,null,null,null,null,null,null,null,null,null,null,null,null,null,null,null,null,null,null,null,"ALGIERIA","DZ","ŁÓDZKIE"]
[null,null," 1. Identyfikator podatkowy NIP",null,null,null,"/numer PESEL",null,null,null," (niepotrzebne skreślić)1)",null,null,null," 2. Nr dokumentu",null,null,null,null,null,null,null,null,null,null,null,"ANDORA","AD","MAŁOPOLSKIE"]
[null,null,null,null,null,null,null,null,null,null,null,null,null,null,null,null,null,null,null,null,null,null,null,null,null,null,"ANGOLA","AO","MAZOWIECKIE"]
[null,null,"IN-1",null,null,null,null,null,null,null,null,null,null,null,null,null,null,null,null,null,null,null,null,null,null,null,"ANGUILLA","AI","OPOLSKIE"]
[null,null," INFORMACJA O NIERUCHOMOŚCIACH I OBIEKTACH BUDOWLANYCH",null,null,null,null,null,null,null,null,null,null,null,null,null,null,null,null,null,null,null,null,null,null,null,"ANTARKTYDA","AQ","PODKARPACKIE"]
[null,null,null,null,null,null,null,null,null,null,null,null,null,null,null,null,null,null,null,null,null,null,null,null,null,null,"ANTIGUA I BARBUDA","AG","PODLASKIE"]
[null,null," Podstawa prawna:",null,null," Art. 6 ust. 6 i 10 ustawy z dnia 12 stycznia 1991 r. o podatkach i opłatach lokalnych (Dz. U. z 2018 r. poz.1445, z późn. zm.).",null,null,null,null,null,null,null,null,null,null,null,null,null,null,null,null,null,null,null,null,"ANTYLE HOLENDERSKIE","AN","POMORSKIE"]
[null,null,null,null,null," zwanej dalej „ustawą”.",null,null,null,null,null,null,null,null,null,null,null,null,null,null,null,null,null,null,null,null,"ARABIA SAUDYJSKA","SA","ŚLĄSKIE"]
[null,null," Składający:",null,null," Osoby fizyczne będące właścicielami nieruchomości lub obiektów budowlanych, posiadaczami samoistnymi nieruchomości",null,null,null,null,null,null,null,null,null,null,null,null,null,null,null,null,null,null,null,null,"ARGENTYNA","AR","ŚWIĘTOKRZYSKIE"]
[null,null,null,null,null," lub obiektów budowlanych, użytkownikami wieczystymi gruntów, posiadaczami nieruchomości lub ich części albo obiektów",null,null,null,null,null,null,null,null,null,null,null,null,null,null,null,null,null,null,null,null,"ARMENIA","AM","WARMIŃSKO-MAZURSKIE"]
[null,null,null,null,null," budowlanych lub ich części, stanowiących własność Skarbu Państwa lub jednostki samorządu terytorialnego.",null,null,null,null,null,null,null,null,null,null,null,null,null,null,null,null,null,null,null,null,"ARUBA","AW","WIELKOPOLSKIE"]
[null,null," Termin składania:",null,null," W terminie 14 dni od dnia wystąpienia okoliczności uzasadniających powstanie albo wygaśnięcie obowiązku podatkowego,",null,null,null,null,null,null,null,null,null,null,null,null,null,null,null,null,null,null,null,null,"AUSTRALIA","AU","ZACHODNIOPOMORSKIE"]
[null,null,null,null,null," lub od dnia zaistnienia zdarzenia mającego wpływ na wysokość opodatkowania, o którym mowa w art. 6 ust. 3 ustawy.",null,null,null,null,null,null,null,null,null,null,null,null,null,null,null,null,null,null,null,null,"AUSTRIA","AT"]
[null,null," Miejsce składania:",null,null," Organ podatkowy właściwy ze względu na miejsce położenia przedmiotów opodatkowania.",null,null,null,null,null,null,null,null,null,null,null,null,null,null,null,null,null,null,null,null,"AZERBEJDŻAN","AZ"]
[null,null,null,null,null,null,null,null,null,null,null,null,null,null,null,null,null,null,null,null,null,null,null,null,null,null,"BAHAMY","BS"]
[null,null," A. MIEJSCE I CEL SKŁADANIA INFORMACJI",null,null,null,null,null,null,null,null,null,null,null,null,null,null,null,null,null,null,null,null,null,null,null,"BAHRAJN","BH"]
[null,null,null," 3. Nazwa i adres siedziby organu podatkowego",null,null,null,null,null,null,null,null,null,null,null,null,null,null,null,null,null,null,null,null,null,null,"BANGLADESZ","BD"]
[null,null,null,null,null,null,null,null,null,null,null,null,null,null,null,null,null,null,null,null,null,null,null,null,null,null,"BARBADOS","BB"]
[null,null,null," 4. Cel złożenia formularza (zaznaczyć właściwy kwadrat):",null,null,null,null,null,null,null,null,null,null,null,null,null,null,null,null,null,null,null,null,null,null,"BELGIA","BE"]
[null,null,null,null,null,null,null,null,null,null,null," 1. złożenie informacji",null,null,null,null,null," 2. korekta informacji",null,null,null,null,null,null,null,null,"BELIZE","BZ"]
[null,null,null," 5. Okres – od którego informacja obowiązuje",null,null,null,null,null,null,null,null,null,null,null,null,null,null,null,null,null,null,null,null,null,null,"BENIN","BJ"]
[null,null,null," (miesiąc - rok)",null,null,null,null,null,null,null,null,null,null,null,null,null,null,null,null,null,null,null,null,null,null,"BERMUDY","BM"]
[null,null,null,null,null,null,null,null,null,null,null,null,null,null,null,null,null,null,null,null,null,null,null,null,null,null,"BHUTAN","BT"]
[null,null," B. PODMIOT ZOBOWIĄZANY DO ZŁOŻENIA INFORMACJI",null,null,null,null,null,null,null,null,null,null,null,null,null,null,null,null,null,null,null,null,null,null,null,"BIAŁORUŚ","BY"]
[null,null,null," 6. Rodzaj podmiotu (zaznaczyć właściwy kwadrat):",null,null,null,null,null,null,null,null,null,null,null,null,null,null,null,null,null,null,null,null,null,null,"BOLIWIA","BO"]
[null,null,null,null,null,"1. właściciel, użytkownik wieczysty lub posiadacz",null,null,null,null,null,null,null,"       2. współwłaściciel, współużytkownik wieczysty lub współposiadacz",null,null,null,null,null,null,null,null,null,null,null,null,"BOŚNIA I HERCEGOWINA","BA"]
[null,null,null,null,null,null,null,null,null,null,null,null,null,null,null,null,null,null,null,null,null,null,null,null,null,null,"BOTSWANA","BW"]
[null,null," C. DANE PODATNIKA",null,null,null,null,null,null,null,null,null,null,null,null,null,null,null,null,null,null,null,null,null,null,null,"BRAZYLIA","BR"]
[null,null," C.1. DANE IDENTYFIKACYJNE",null,null,null,null,null,null,null,null,null,null,null,null,null,null,null,null,null,null,null,null,null,null,null,"BRUNEI DARUSSALAM","BN"]
[null,null,null," 7. Nazwisko",null,null,null,null,null,null,null,null,null,null,null," 8. Pierwsze imię",null,null,null,null,null,null,null,null,null,null,"BRYTYJSKIE TERYTORIUM OCEANU INDYJSKIEGO","IO"]
[null,null,null,null,null,null,null,null,null,null,null,null,null,null,null,null,null,null,null,null,null,null,null,null,null,null,"BUŁGARIA","BG"]
[null,null,null," 9. Identyfikator REGON (w przypadku osób fizycznych REGON podaje się, o ile został nadany)",null,null,null,null,null,null,null,null,null,null,null,null,null,null,null,null,null,null,null,null,null,null,"BURKINA FASO","BF"]
[null,null,null,null,null,null,null,null,null,null,null,null,null,null,null,null,null,null,null,null,null,null,null,null,null,null,"BURUNDI","BI"]
[null,null," Pola 10, 11, 12 wypełnia osoba fizyczna w przypadku, gdy numer PESEL nie został nadany.",null,null,null,null,null,null,null,null,null,null,null,null,null,null,null,null,null,null,null,null,null,null,null,"CEUTA","XC"]
[null,null,null," 10. Data urodzenia (dzień - miesiąc - rok)",null,null,null,null,null,null,null,null," 11. Imię ojca",null,null,null,null,null,null," 12. Imię matki",null,null,null,null,null,null,"CHILE","CL"]
[null,null,null,null,null,null,null,null,null,null,null,null,null,null,null,null,null,null,null,null,null,null,null,null,null,null,"CHINY","CN"]
[null,null," C.2. ADRES ZAMIESZKANIA",null,null,null,null,null,null,null,null,null,null,null,null,null,null,null,null,null,null,null,null,null,null,null,"CHORWACJA","HR"]
[null,null,null," 13. Kraj",null,null,null,null,null," 14. Województwo",null,null,null,null,null,null,null,null," 15. Powiat",null,null,null,null,null,null,null,"CYPR","CY"]
[null,null,null,null,null,null,null,null,null,null,null,null,null,null,null,null,null,null,null,null,null,null,null,null,null,null,"CZAD","TD"]
[null,null,null," 16. Gmina",null,null,null,null,null,null," 17. Ulica",null,null,null,null,null,null,null,null,null,null," 18. Nr domu"," 19. Nr lokalu",null,null,null,"CZARNOGÓRA","ME"]
[null,null,null,null,null,null,null,null,null,null,null,null,null,null,null,null,null,null,null,null,null,null,null,null,null,null,"DANIA","DK"]
[null,null,null," 20. Miejscowość",null,null,null,null,null,null,null,null,null,null,null," 21. Kod pocztowy",null,null,null,null,null,null,null,null,null,null,"DOMINIKA","DM"]
[null,null,null,null,null,null,null,null,null,null,null,null,null,null,null,null,null,null,null,null,null,null,null,null,null,null,"DOMINIKANA","DO"]
[null,null," C.3. ADRES DO DORĘCZEŃ Należy wypełnić tylko wówczas, gdy adres do doręczeń jest inny niż w części B.2.",null,null,null,null,null,null,null,null,null,null,null,null,null,null,null,null,null,null,null,null,null,null,null,"DŻIBUTI","DJ"]
[null,null,null," 22. Kraj",null,null,null,null,null," 23. Województwo",null,null,null,null,null,null,null,null," 24. Powiat",null,null,null,null,null,null,null,"EGIPT","EG"]
[null,null,null,null,null,null,null,null,null,null,null,null,null,null,null,null,null,null,null,null,null,null,null,null,null,null,"EKWADOR","EC"]
[null,null,null," 25. Gmina",null,null,null,null,null,null," 26. Ulica",null,null,null,null,null,null,null,null,null,null," 27. Nr domu"," 28. Nr lokalu",null,null,null,"ERYTREA","ER"]
[null,null,null,null,null,null,null,null,null,null,null,null,null,null,null,null,null,null,null,null,null,null,null,null,null,null,"ESTONIA","EE"]
[null,null,null," 29. Miejscowość",null,null,null,null,null,null,null,null,null,null,null," 30. Kod pocztowy",null,null,null,null,null,null,null,null,null,null,"ETIOPIA","ET"]
[null,null,null,null,null,null,null,null,null,null,null,null,null,null,null,null,null,null,null,null,null,null,null,null,null,null,"FALKLANDY","FK"]
[null,null,null,null,null,null,null,null,null,null,null,null,null,null,null,null,null,null,null,null,null,null,null,null,null,null,"FIDŻI REPUBLIKA","FJ"]
[null,null,"Formularze podatkowe w Excelu  www.pit.waw.pl",null,null,null,null,null,null,null,null,null,null,null,null,null,null,null,null,null,"IN-1(1)",null,null," 1/5",null,null,"FILIPINY","PH"]
[null,null,null,null,null,null,null,null,null,null,null,null,null,null,null,null,null,null,null,null,null,null,null,null,null,null,"FINLANDIA","FI"]
[null,null,null,null,null,null,null,null,null,null,null,null,null,null,null,null,null,null,null,null,null,null,null,null,null,null,"FRANCJA","FR"]
[null,null,null,null,null,null,null,null,null,null,null,null,null,null,null,null,null,null,null,null,null,null,null,null,null,null,"FRANCUSKIE TERYTORIUM POŁUDNIOWE","TF"]
[null,null," WYPEŁNIĆ DUŻYMI, DRUKOWANYMI LITERAMI, CZARNYM LUB NIEBIESKIM KOLOREM.",null,null,null,null,null,null,null,null,null,null,null,null,null,null,null,null,null,null,null,null,null,null,null,"GABON","GA"]
[null,null,null,null,null,null,null,null,null,null,null,null,null,null,null,null,null,null,null,null,null,null,null,null,null,null,"GAMBIA","GM"]
[null,null,null,null,null,null,null,null,null,null,null,null,null,null,null,null,null,null,null,null,null,null,null,null,null,null,"GHANA","GH"]
[null,null," D. DANE O PRZEDMIOTACH OPODATKOWANIA PODLEGAJĄCYCH OPODATKOWANIU",null,null,null,null,null,null,null,null,null,null,null,null,null,null,null,null,null,null,null,null,null,null,null,"GIBRALTAR","GI"]
[null,null," D.1. GRUNTY",null,null,null,null,null,null,null,null,null,null,null,null,null,null,null,null,null,null,null,null,null,null,null,"GRECJA","GR"]
[null,null,null,null,null,null,null,null,null,null,null,null,null,null,null,null,null,null,null,null,null,null,null,null,null,null,"GRENADA","GD"]
[null,null,null,null,null,null,null,null,null,null,null,null,null,null,null,null,null,null,null,null," Powierzchnia w m2 / ha3)",null,null,null,null,null,"GRENLANDIA","GL"]
[null,null,null," Związane z prowadzeniem działalności gospodarczej, bez względu na sposób zakwalifikowania w ewidencji gruntów",null,null,null,null,null,null,null,null,null,null,null,null,null,null,null,null," 31. ",null,null,null,null,null,"GRUZJA","GE"]
[null,null,null," i budynków",null,null,null,null,null,null,null,null,null,null,null,null,null,null,null,null,null,null,null,null,null,null,"GUAM","GU"]
[null,null,null," Pod wodami powierzchniowymi stojącymi lub wodami powierzchniowymi płynącymi jezior i zbiorników sztucznych",null,null,null,null,null,null,null,null,null,null,null,null,null,null,null,null," 32. ",null,null,null,null,null,"GUERNSEY","GG"]
[null,null,null,null,null,null,null,null,null,null,null,null,null,null,null,null,null,null,null,null,null,null,null,null,null,null,"GUJANA","GY"]
[null,null,null," Pozostałe, w tym zajęte na prowadzenie odpłatnej statutowej działalności pożytku publicznego przez organizacje",null,null,null,null,null,null,null,null,null,null,null,null,null,null,null,null," 33. ",null,null,null,null,null,"GUJANA FRANCUSKA","GF"]
[null,null,null," pożytku publicznego",null,null,null,null,null,null,null,null,null,null,null,null,null,null,null,null,null,null,null,null,null,null,"GWADELUPA","GP"]
[null,null,null," Niezabudowane objęte obszarem rewitalizacji, o którym mowa w ustawie z dnia 9 października 2015 r. o rewitalizacji",null,null,null,null,null,null,null,null,null,null,null,null,null,null,null,null," 34. ",null,null,null,null,null,"GWATEMALA","GT"]
[null,null,null," (Dz. U. z 2018 r. poz. 1398, z późn. zm.), i położone na terenach, dla których miejscowy plan zagospodarowania",null,null,null,null,null,null,null,null,null,null,null,null,null,null,null,null,null,null,null,null,null,null,"GWINEA","GN"]
[null,null,null," przestrzennego przewiduje przeznaczenie pod zabudowę mieszkaniową, usługową albo zabudowę o przeznaczeniu",null,null,null,null,null,null,null,null,null,null,null,null,null,null,null,null,null,null,null,null,null,null,"GWINEA RÓWNIKOWA","GQ"]
[null,null,null," mieszanym obejmującym wyłącznie te rodzaje zabudowy, jeżeli od dnia wejścia w życie tego planu w odniesieniu do",null,null,null,null,null,null,null,null,null,null,null,null,null,null,null,null,null,null,null,null,null,null,"GWINEA-BISSAU","GW"]
[null,null,null," tych gruntów upłynął okres 4 lat, a w tym czasie nie zakończono budowy zgodnie z przepisami prawa budowlanego",null,null,null,null,null,null,null,null,null,null,null,null,null,null,null,null,null,null,null,null,null,null,"HAITI","HT"]
[null,null," D.1.1. INNE GRUNTY (1) Należy wypełnić tylko dla rodzajów przedmiotów opodatkowania innych niż określone w części D.1. Podać",null,null,null,null,null,null,null,null,null,null,null,null,null,null,null,null,null,null,null,null,null,null,null,"HISZPANIA","ES"]
[null,null,null," nazwę rodzaju przedmiotu opodatkowania lub jednostkę redakcyjną - zgodnie z uchwałą rady gminy.",null,null,null,null,null,null,null,null,null,null,null,null,null,null,null,null,null,null,null,null,null,null,"HONDURAS","HN"]
[null,null,null," 35. Rodzaj przedmiotu opodatkowania",null,null,null,null,null,null,null,null,null,null,null,null,null,null,null,null," 36. ",null,null,null,null,null,"HONGKONG","HK"]
[null,null,null,null,null,null,null,null,null,null,null,null,null,null,null,null,null,null,null,null,null,null,null,null,null,null,"INDIE","IN"]
[null,null,null," 37. Rodzaj przedmiotu opodatkowania",null,null,null,null,null,null,null,null,null,null,null,null,null,null,null,null," 38. ",null,null,null,null,null,"INDONEZJA","ID"]
[null,null,null,null,null,null,null,null,null,null,null,null,null,null,null,null,null,null,null,null,null,null,null,null,null,null,"IRAK","IQ"]
[null,null," D.1.2. INNE GRUNTY (2) Należy wypełnić tylko dla rodzajów przedmiotów opodatkowania innych niż określone w części D.1. Podać",null,null,null,null,null,null,null,null,null,null,null,null,null,null,null,null,null,null,null,null,null,null,null,"IRAN","IR"]
[null,null,null," nazwę rodzaju przedmiotu opodatkowania lub jednostkę redakcyjną - zgodnie z uchwałą rady gminy.",null,null,null,null,null,null,null,null,null,null,null,null,null,null,null,null,null,null,null,null,null,null,"IRLANDIA","IE"]
[null,null,null," 35. Rodzaj przedmiotu opodatkowania",null,null,null,null,null,null,null,null,null,null,null,null,null,null,null,null," 36. ",null,null,null,null,null,"ISLANDIA","IS"]
[null,null,null,null,null,null,null,null,null,null,null,null,null,null,null,null,null,null,null,null,null,null,null,null,null,null,"IZRAEL","IL"]
[null,null,null," 37. Rodzaj przedmiotu opodatkowania",null,null,null,null,null,null,null,null,null,null,null,null,null,null,null,null," 38. ",null,null,null,null,null,"JAMAJKA","JM"]
[null,null,null,null,null,null,null,null,null,null,null,null,null,null,null,null,null,null,null,null,null,null,null,null,null,null,"JAPONIA","JP"]
[null,null," D.2. BUDYNKI LUB ICH CZĘŚCI Do powierzchni użytkowej budynku lub jego części zalicza się powierzchnię mierzoną po",null,null,null,null,null,null,null,null,null,null,null,null,null,null,null,null,null,null,null,null,null,null,null,"JEMEN","YE"]
[null,null,null," wewnętrznej długości ścian na wszystkich kondygnacjach, z wyjątkiem powierzchni klatek schodowych oraz szybów dźwigowych; za",null,null,null,null,null,null,null,null,null,null,null,null,null,null,null,null,null,null,null,null,null,null,"JERSEY","JE"]
[null,null,null," kondygnację uważa się również garaże podziemne, piwnice, sutereny i poddasza użytkowe.",null,null,null,null,null,null,null,null,null,null,null,null,null,null,null,null,null,null,null,null,null,null,"JORDANIA","JO"]
[null,null,null," Powierzchnię pomieszczeń lub ich części oraz część kondygnacji o wysokości w świetle od 1,40 m do 2,20 m zalicza się do powierzchni",null,null,null,null,null,null,null,null,null,null,null,null,null,null,null,null,null,null,null,null,null,null,"KAJMANY","KY"]
[null,null,null," użytkowej budynku w 50%, a jeżeli wysokość jest mniejsza niż 1,40 m, powierzchnię tę pomija się.",null,null,null,null,null,null,null,null,null,null,null,null,null,null,null,null,null,null,null,null,null,null,"KAMBODŻA","KH"]
[null,null,null,null,null,null,null,null,null,null,null,null,null,null,null,null,null,null,null,null," Powierzchnia użytkowa w m2",null,null,null,null,null,"KAMERUN","CM"]
[null,null,null," Budynki mieszkalne - ogółem",null,null,null,null,null,null,null,null,null,null,null,null,null,null,null,null," 39. ",null,null,null,null,null,"KANADA","CA"]
[null,null,null,null,null,null,null,null,null,null,null,null,null,null,null,null,null,null,null,null,{"$f":"U99+U101","v":0},null,null,null,null,null,"KATAR","QA"]
[null,null,null," w tym kondygnacji",null,null,null," - od 1,40 do 2,20 m",null,null,null,null,null,null,null,null,null,null,null,null," 40. ",null,null,null,null,null,"KAZACHSTAN","KZ"]
[null,null,null," o wysokości:",null,null,null,null,null,null,null,null,null,null,null,null,null,null,null,null,null,null,null,null,null,null,"KENIA","KE"]
[null,null,null,null,null,null,null," - powyżej 2,20 m",null,null,null,null,null,null,null,null,null,null,null,null," 41. ",null,null,null,null,null,"KIRGISTAN","KG"]
[null,null,null,null,null,null,null,null,null,null,null,null,null,null,null,null,null,null,null,null,null,null,null,null,null,null,"KIRIBATI","KI"]
[null,null,null," Związane z prowadzeniem działalności gospodarczej oraz budynki mieszkalne lub ich części zajęte na prowadzenie",null,null,null,null,null,null,null,null,null,null,null,null,null,null,null,null," 42. ",null,null,null,null,null,"KOLUMBIA","CO"]
[null,null,null," działalności gospodarczej - ogółem",null,null,null,null,null,null,null,null,null,null,null,null,null,null,null,null,{"$f":"U105+U107","v":0},null,null,null,null,null,"KOMORY","KM"]
[null,null,null," w tym kondygnacji",null,null,null," - od 1,40 do 2,20 m",null,null,null,null,null,null,null,null,null,null,null,null," 43. ",null,null,null,null,null,"KONGO","CG"]
[null,null,null," o wysokości:",null,null,null,null,null,null,null,null,null,null,null,null,null,null,null,null,null,null,null,null,null,null,"KONGO, REPUBLIKA DEMOKRATYCZNA","CD"]
[null,null,null,null,null,null,null," - powyżej 2,20 m",null,null,null,null,null,null,null,null,null,null,null,null," 44. ",null,null,null,null,null,"KOREAŃ\u0083SKA REPUBLIKA LUDOWO-DEMOKRATYCZNA","KP"]
[null,null,null,null,null,null,null,null,null,null,null,null,null,null,null,null,null,null,null,null,null,null,null,null,null,null,"KOSOWO","XK"]
[null,null,null," Zajęte na prowadzenie działalności gospodarczej w zakresie obrotu kwalifikowanym materiałem siewnym - ogółem",null,null,null,null,null,null,null,null,null,null,null,null,null,null,null,null," 45. ",null,null,null,null,null,"KOSTARYKA","CR"]
[null,null,null,null,null,null,null,null,null,null,null,null,null,null,null,null,null,null,null,null,{"$f":"U118+U120","v":0},null,null,null,null,null,"KUBA","CU"]
[null,null,null,null,null,null,null,null,null,null,null,null,null,null,null,null,null,null,null,null,null,null,null,null,null,null,"KUWEJT","KW"]
[null,null,"IN-1(1)",null,null,"2/5",null,null,null,null,null,null,null,null,null,null,null,null,null,null,null,null,null,null,null,null,"LAOS","LA"]
[null,null,null,null,null,null,null,null,null,null,null,null,null,null,null,null,null,null,null,null,null,null,null,null,null,null,"LESOTHO","LS"]
[null,null,null,null,null,null,null,null,null,null,null,null,null,null,null,null,null,null,null,null,null,null,null,null,null,null,"LIBAN","LB"]
[null,null,null,null,null,null,null,null,null,null,null,null,null,null,null,null,null,null,null,null,null,null,null,null,null,null,"LIBERIA","LR"]
[null,null," WYPEŁNIĆ DUŻYMI, DRUKOWANYMI LITERAMI, CZARNYM LUB NIEBIESKIM KOLOREM.",null,null,null,null,null,null,null,null,null,null,null,null,null,null,null,null,null,null,null,null,null,null,null,"LIBIA","LY"]
[null,null,null,null,null,null,null,null,null,null,null,null,null,null,null,null,null,null,null,null,null,null,null,null,null,null,"LIECHTENSTEIN","LI"]
[null,null,null," w tym kondygnacji",null,null,null," - od 1,40 do 2,20 m",null,null,null,null,null,null,null,null,null,null,null,null," 46. ",null,null,null,null,null,"LITWA","LT"]
[null,null,null," o wysokości:",null,null,null,null,null,null,null,null,null,null,null,null,null,null,null,null,null,null,null,null,null,null,"ŁOTWA","LV"]
[null,null,null,null,null,null,null," - powyżej 2,20 m",null,null,null,null,null,null,null,null,null,null,null,null," 47. ",null,null,null,null,null,"LUKSEMBURG","LU"]
[null,null,null,null,null,null,null,null,null,null,null,null,null,null,null,null,null,null,null,null,null,null,null,null,null,null,"MACEDONIA","MK"]
[null,null,null," Związane z udzielaniem świadczeń zdrowotnych w rozumieniu przepisów o działalności leczniczej, zajęte przez",null,null,null,null,null,null,null,null,null,null,null,null,null,null,null,null," 48. ",null,null,null,null,null,"MADAGASKAR","MG"]
[null,null,null," podmioty udzielające tych świadczeń - ogółem",null,null,null,null,null,null,null,null,null,null,null,null,null,null,null,null,{"$f":"U124+U126","v":0},null,null,null,null,null,"MAJOTTA","YT"]
[null,null,null," w tym kondygnacji",null,null,null," - od 1,40 do 2,20 m",null,null,null,null,null,null,null,null,null,null,null,null," 49. ",null,null,null,null,null,"MAKAU","MO"]
[null,null,null," o wysokości:",null,null,null,null,null,null,null,null,null,null,null,null,null,null,null,null,null,null,null,null,null,null,"MALAWI","MW"]
[null,null,null,null,null,null,null," - powyżej 2,20 m",null,null,null,null,null,null,null,null,null,null,null,null," 50. ",null,null,null,null,null,"MALEDIWY","MV"]
[null,null,null,null,null,null,null,null,null,null,null,null,null,null,null,null,null,null,null,null,null,null,null,null,null,null,"MALEZJA","MY"]
[null,null,null," Pozostałe, w tym zajęte na prowadzenie odpłatnej statutowej działalności pożytku publicznego przez organizacje",null,null,null,null,null,null,null,null,null,null,null,null,null,null,null,null," 51. ",null,null,null,null,null,"MALI","ML"]
[null,null,null," pożytku publicznego - ogółem",null,null,null,null,null,null,null,null,null,null,null,null,null,null,null,null,{"$f":"U130+U132","v":0},null,null,null,null,null,"MALTA","MT"]
[null,null,null," w tym kondygnacji",null,null,null," - od 1,40 do 2,20 m",null,null,null,null,null,null,null,null,null,null,null,null," 52. ",null,null,null,null,null,"MARIANY PÓŁNOCNE","MP"]
[null,null,null," o wysokości:",null,null,null,null,null,null,null,null,null,null,null,null,null,null,null,null,null,null,null,null,null,null,"MAROKO","MA"]
[null,null,null,null,null,null,null," - powyżej 2,20 m",null,null,null,null,null,null,null,null,null,null,null,null," 53. ",null,null,null,null,null,"MARTYNIKA","MQ"]
[null,null,null,null,null,null,null,null,null,null,null,null,null,null,null,null,null,null,null,null,null,null,null,null,null,null,"MAURETANIA","MR"]
[null,null," D.2.1. INNE BUDYNKI LUB ICH CZĘŚCI (1) Należy wypełnić tylko dla rodzajów przedmiotów opodatkowania innych niż",null,null,null,null,null,null,null,null,null,null,null,null,null,null,null,null,null,null,null,null,null,null,null,"MAURITIUS","MU"]
[null,null,null," określone w części C.2. Podać nazwę rodzaju przedmiotu opodatkowania lub jednostkę redakcyjną - zgodnie z uchwałą rady gminy.",null,null,null,null,null,null,null,null,null,null,null,null,null,null,null,null,null,null,null,null,null,null,"MEKSYK","MX"]
[null,null,null," 54. Rodzaj przedmiotu opodatkowania",null,null,null,null,null,null,null,null,null,null,null,null,null,null,null,null," 55. ",null,null,null,null,null,"MELILLA","XL"]
[null,null,null,null,null,null,null,null,null,null,null,null,null,null,null,null,null,null,null,null,{"$f":"U138+U140","v":0},null,null,null,null,null,"MIKRONEZJA","FM"]
[null,null,null," w tym kondygnacji",null,null,null," - od 1,40 do 2,20 m",null,null,null,null,null,null,null,null,null,null,null,null," 56. ",null,null,null,null,null,"MINOR","UM"]
[null,null,null," o wysokości:",null,null,null,null,null,null,null,null,null,null,null,null,null,null,null,null,null,null,null,null,null,null,"MOŁDOWA","MD"]
[null,null,null,null,null,null,null," - powyżej 2,20 m",null,null,null,null,null,null,null,null,null,null,null,null," 57. ",null,null,null,null,null,"MONAKO","MC"]
[null,null,null,null,null,null,null,null,null,null,null,null,null,null,null,null,null,null,null,null,null,null,null,null,null,null,"MONGOLIA","MN"]
[null,null,null," 58. Rodzaj przedmiotu opodatkowania",null,null,null,null,null,null,null,null,null,null,null,null,null,null,null,null," 59. ",null,null,null,null,null,"MONTSERRAT","MS"]
[null,null,null,null,null,null,null,null,null,null,null,null,null,null,null,null,null,null,null,null,{"$f":"U144+U146","v":0},null,null,null,null,null,"MOZAMBIK","MZ"]
[null,null,null," w tym kondygnacji",null,null,null," - od 1,40 do 2,20 m",null,null,null,null,null,null,null,null,null,null,null,null," 60. ",null,null,null,null,null,"MYANMAR (BURMA)","MM"]
[null,null,null," o wysokości:",null,null,null,null,null,null,null,null,null,null,null,null,null,null,null,null,null,null,null,null,null,null,"NAMIBIA","NA"]
[null,null,null,null,null,null,null," - powyżej 2,20 m",null,null,null,null,null,null,null,null,null,null,null,null," 61. ",null,null,null,null,null,"NAURU","NR"]
[null,null,null,null,null,null,null,null,null,null,null,null,null,null,null,null,null,null,null,null,null,null,null,null,null,null,"NEPAL","NP"]
[null,null," D.2.2. INNE BUDYNKI LUB ICH CZĘŚCI (2) Należy wypełnić tylko dla rodzajów przedmiotów opodatkowania innych niż",null,null,null,null,null,null,null,null,null,null,null,null,null,null,null,null,null,null,null,null,null,null,null,"NIDERLANDY (HOLANDIA)","NL"]
[null,null,null," określone w części C.2. Podać nazwę rodzaju przedmiotu opodatkowania lub jednostkę redakcyjną - zgodnie z uchwałą rady gminy.",null,null,null,null,null,null,null,null,null,null,null,null,null,null,null,null,null,null,null,null,null,null,"NIEMCY","DE"]
[null,null,null," 54. Rodzaj przedmiotu opodatkowania",null,null,null,null,null,null,null,null,null,null,null,null,null,null,null,null," 55. ",null,null,null,null,null,"NIGER","NE"]
[null,null,null,null,null,null,null,null,null,null,null,null,null,null,null,null,null,null,null,null,{"$f":"U152+U154","v":0},null,null,null,null,null,"NIGERIA","NG"]
[null,null,null," w tym kondygnacji",null,null,null," - od 1,40 do 2,20 m",null,null,null,null,null,null,null,null,null,null,null,null," 56. ",null,null,null,null,null,"NIKARAGUA","NI"]
[null,null,null," o wysokości:",null,null,null,null,null,null,null,null,null,null,null,null,null,null,null,null,null,null,null,null,null,null,"NIUE","NU"]
[null,null,null,null,null,null,null," - powyżej 2,20 m",null,null,null,null,null,null,null,null,null,null,null,null," 57. ",null,null,null,null,null,"NORFOLK","NF"]
[null,null,null,null,null,null,null,null,null,null,null,null,null,null,null,null,null,null,null,null,null,null,null,null,null,null,"NORWEGIA","NO"]
[null,null,null," 58. Rodzaj przedmiotu opodatkowania",null,null,null,null,null,null,null,null,null,null,null,null,null,null,null,null," 59. ",null,null,null,null,null,"NOWA KALEDONIA","NC"]
[null,null,null,null,null,null,null,null,null,null,null,null,null,null,null,null,null,null,null,null,{"$f":"U158+U160","v":0},null,null,null,null,null,"NOWA ZELANDIA","NZ"]
[null,null,null," w tym kondygnacji",null,null,null," - od 1,40 do 2,20 m",null,null,null,null,null,null,null,null,null,null,null,null," 60. ",null,null,null,null,null,"OKUPOWANE TERYTORIUM PALESTYNY","PS"]
[null,null,null," o wysokości:",null,null,null,null,null,null,null,null,null,null,null,null,null,null,null,null,null,null,null,null,null,null,"OMAN","OM"]
[null,null,null,null,null,null,null," - powyżej 2,20 m",null,null,null,null,null,null,null,null,null,null,null,null," 61. ",null,null,null,null,null,"PAKISTAN","PK"]
[null,null,null,null,null,null,null,null,null,null,null,null,null,null,null,null,null,null,null,null,null,null,null,null,null,null,"PALAU","PW"]
[null,null,null,null,null,null,null,null,null,null,null,null,null,null,null,null,null,null,null,null,null,null,null,null,null,null,"PANAMA","PA"]
[null,null,null,null,null,null,null,null,null,null,null,null,null,null,null,null,null,null,null,null,"IN-1(1)",null,null,"3/5",null,null,"PAPUA NOWA GWINEA","PG"]
[null,null,null,null,null,null,null,null,null,null,null,null,null,null,null,null,null,null,null,null,null,null,null,null,null,null,"PARAGWAJ","PY"]
[null,null,null,null,null,null,null,null,null,null,null,null,null,null,null,null,null,null,null,null,null,null,null,null,null,null,"PERU","PE"]
[null,null,null,null,null,null,null,null,null,null,null,null,null,null,null,null,null,null,null,null,null,null,null,null,null,null,"PITCAIRN","PN"]
[null,null," WYPEŁNIĆ DUŻYMI, DRUKOWANYMI LITERAMI, CZARNYM LUB NIEBIESKIM KOLOREM.",null,null,null,null,null,null,null,null,null,null,null,null,null,null,null,null,null,null,null,null,null,null,null,"POLINEZJA FRANCUSKA","PF"]
[null,null,null,null,null,null,null,null,null,null,null,null,null,null,null,null,null,null,null,null,null,null,null,null,null,null,"POŁUDNIOWA GEORGIA I POŁUD.WYSPY SANDWICH","GS"]
[null,null," D.3. BUDOWLE LUB ICH CZĘŚCI ZWIĄZANE Z PROWADZENIEM DZIAŁALNOŚCI",null,null,null,null,null,null,null,null,null,null,null,null,null,null,null,null,null,null,null,null,null,null,null,"PORTUGALIA","PT"]
[null,null,"       GOSPODARCZEJ",null,null,null,null,null,null,null,null,null,null,null,null,null,null,null,null,null,null,null,null,null,null,null,"PORTORYKO","PR"]
[null,null,null,null,null,null,null,null,null,null,null,null,null,null,null,null,null,null,null,null," Wartość",null,null,null,null,null,"REP.ŚRODKOWOAFRYKAŃ\u0083SKA","CF"]
[null,null,null,null,null,null,null,null,null,null,null,null,null,null,null,null,null,null,null,null," (po zaokrągleniu do pełnych złotych)",null,null,null,null,null,"REPUBLIKA CZESKA","CZ"]
[null,null,null,null,null,null,null,null,null,null,null,null,null,null,null,null,null,null,null,null," zł     ",null,null,null,null,null,"REPUBLIKA KOREI","KR"]
[null,null,null," Budowle",null,null,null,null,null,null,null,null,null,null,null,null,null,null,null,null," 62. ",null,null,null,null,null,"REPUBLIKA POŁUDNIOWEJ AFRYKI","ZA"]
[null,null,null,null,null,null,null,null,null,null,null,null,null,null,null,null,null,null,null,null,null,null,null,null,null,null,"REUNION","RE"]
[null,null," D.3.1. INNE BUDOWLE LUB ICH CZĘŚCI (1) Należy wypełnić tylko dla rodzajów przedmiotów opodatkowania innych niż",null,null,null,null,null,null,null,null,null,null,null,null,null,null,null,null,null,null,null,null,null,null,null,"ROSJA","RU"]
[null,null,null," określone w części D.3. Podać nazwę rodzaju przedmiotu opodatkowania lub jednostkę redakcyjną - zgodnie z uchwałą rady gminy.",null,null,null,null,null,null,null,null,null,null,null,null,null,null,null,null,null,null,null,null,null,null,"RUMUNIA","RO"]
[null,null,null," 63. Rodzaj przedmiotu opodatkowania",null,null,null,null,null,null,null,null,null,null,null,null,null,null,null,null," 64. ",null,null,null,null,null,"RWANDA","RW"]
[null,null,null,null,null,null,null,null,null,null,null,null,null,null,null,null,null,null,null,null,null,null,null,null,null,null,"SAHARA ZACHODNIA","EH"]
[null,null," D.3.2. INNE BUDOWLE LUB ICH CZĘŚCI (2) Należy wypełnić tylko dla rodzajów przedmiotów opodatkowania innych niż",null,null,null,null,null,null,null,null,null,null,null,null,null,null,null,null,null,null,null,null,null,null,null,"SAINT BARTHELEMY","BL"]
[null,null,null," określone w części D.3. Podać nazwę rodzaju przedmiotu opodatkowania lub jednostkę redakcyjną - zgodnie z uchwałą rady gminy.",null,null,null,null,null,null,null,null,null,null,null,null,null,null,null,null,null,null,null,null,null,null,"SAINT KITTS I NEVIS","KN"]
[null,null,null," 63. Rodzaj przedmiotu opodatkowania",null,null,null,null,null,null,null,null,null,null,null,null,null,null,null,null," 64. ",null,null,null,null,null,"SAINT LUCIA","LC"]
[null,null,null,null,null,null,null,null,null,null,null,null,null,null,null,null,null,null,null,null,null,null,null,null,null,null,"SAINT MARTIN","MF"]
[null,null,null,null,null,null,null,null,null,null,null,null,null,null,null,null,null,null,null,null,null,null,null,null,null,null,"SAINT VINCENT I GRENADYNY","VC"]
[null,null," E. INFORMACJA O ZAŁĄCZNIKACH Informację należy składać wraz z odpowiednimi załącznikami, które stanowią jej integralną",null,null,null,null,null,null,null,null,null,null,null,null,null,null,null,null,null,null,null,null,null,null,null,"SALWADOR","SV"]
[null,null,null,"część.",null,null,null,null,null,null,null,null,null,null,null,null,null,null,null,null,null,null,null,null,null,null,"SAMOA","WS"]
[null,null,null," 65. Liczba załączników ZIN-1",null,null,null,null,null,null,null,null," 66. Liczba załączników ZIN-2",null,null,null,null,null,null," 67. Dołączono załącznik ZIN-3",null,null,null,null,null,null,"SAMOA AMERYKAŃ\u0083SKIE","AS"]
[null,null,null,null,null,null,null,null,null,null,null,null,null,null,null,null,null,null,null,null,null," 1. tak"," 2. nie",null,null,null,"SAN MARINO","SM"]
[null,null,null,null,null,null,null,null,null,null,null,null,null,null,null,null,null,null,null,null,null,null,null,null,null,null,"SENEGAL","SN"]
[null,null," F. DODATKOWE INFORMACJE",null,null,null,null,null,null,null,null,null,null,null,null,null,null,null,null,null,null,null,null,null,null,null,"SERBIA","RS"]
[null,null,null," Podanie informacji w części F nie jest obowiązkowe.",null,null,null,null,null,null,null,null,null,null,null,null,null,null,null,null,null,null,null,null,null,null,"SESZELE","SC"]
[null,null,null," 68. Telefon podatnika / osoby reprezentującej podatnika4)",null,null,null,null,null,null,null,null,null,null,null," 69. E-mail podatnika / osoby reprezentującej podatnika4)",null,null,null,null,null,null,null,null,null,null,"SIERRA LEONE","SL"]
[null,null,null,null,null,null,null,null,null,null,null,null,null,null,null,null,null,null,null,null,null,null,null,null,null,null,"SINGAPUR","SG"]
[null,null,null," 70. Inne (np. określenie zdarzenia powodującego obowiązek złożenia informacji lub korekty informacji)",null,null,null,null,null,null,null,null,null,null,null,null,null,null,null,null,null,null,null,null,null,null,"SŁOWACJA","SK"]
[null,null,null,null,null,null,null,null,null,null,null,null,null,null,null,null,null,null,null,null,null,null,null,null,null,null,"SŁOWENIA","SI"]
[null,null,null,null,null,null,null,null,null,null,null,null,null,null,null,null,null,null,null,null,null,null,null,null,null,null,"SOMALIA","SO"]
[null,null," G. PODPIS PODATNIKA (PODATNIKÓW) / OSOBY (OSÓB) REPREZENTUJĄCEJ PODATNIKA",null,null,null,null,null,null,null,null,null,null,null,null,null,null,null,null,null,null,null,null,null,null,null,"SRI LANKA","LK"]
[null,null," G.1. PODPIS PODATNIKA (1) / OSOBY REPREZENTUJĄCEJ PODATNIKA (1)4)",null,null,null,null,null,null,null,null,null,null,null,null,null,null,null,null,null,null,null,null,null,null,null,"SAINT PIERRE I MIQUELON","PM"]
[null,null,null," Dotyczy podatnika wskazanego w części C.1.",null,null,null,null,null,null,null,null,null,null,null,null,null,null,null,null,null,null,null,null,null,null,"STANY ZJEDNOCZONE AMERYKI","US"]
[null,null,null," 71. Pierwsze imię",null,null,null,null,null,null,null,null,null,null,null," 72. Nazwisko",null,null,null,null,null,null,null,null,null,null,"SUAZI","SZ"]
[null,null,null,null,null,null,null,null,null,null,null,null,null,null,null,null,null,null,null,null,null,null,null,null,null,null,"SUDAN","SD"]
[null,null,null," 73. Data wypełnienia (dzień - miesiąc - rok)",null,null,null,null,null,null,null,null,null,null,null," 74. Podpis podatnika / osoby reprezentującej podatnika",null,null,null,null,null,null,null,null,null,null,"SURINAM","SR"]
[null,null,null,null,null,null,null,null,null,null,null,null,null,null,null,null,null,null,null,null,null,null,null,null,null,null,"SVALBARD I JAN MAYEN","SJ"]
[null,null," G.2. PODPIS PODATNIKA (2) / OSOBY REPREZENTUJĄCEJ PODATNIKA (2)4)",null,null,null,null,null,null,null,null,null,null,null,null,null,null,null,null,null,null,null,null,null,null,null,"ŚWIĘTA HELENA","SH"]
[null,null,null," 75. Pierwsze imię",null,null,null,null,null,null,null,null,null,null,null," 76. Nazwisko",null,null,null,null,null,null,null,null,null,null,"SYRIA","SY"]
[null,null,null,null,null,null,null,null,null,null,null,null,null,null,null,null,null,null,null,null,null,null,null,null,null,null,"SZWAJCARIA","CH"]
[null,null,null," 77. Data wypełnienia (dzień - miesiąc - rok)",null,null,null,null,null,null,null,null,null,null,null," 78. Podpis podatnika / osoby reprezentującej podatnika",null,null,null,null,null,null,null,null,null,null,"SZWECJA","SE"]
[null,null,null,null,null,null,null,null,null,null,null,null,null,null,null,null,null,null,null,null,null,null,null,null,null,null,"TADŻYKISTAN","TJ"]
[null,null," G.3. PODPIS PODATNIKA (3) / OSOBY REPREZENTUJĄCEJ PODATNIKA (3)4)",null,null,null,null,null,null,null,null,null,null,null,null,null,null,null,null,null,null,null,null,null,null,null,"TAJLANDIA","TH"]
[null,null,null," 79. Pierwsze imię",null,null,null,null,null,null,null,null,null,null,null," 80. Nazwisko",null,null,null,null,null,null,null,null,null,null,"TAJWAN","TW"]
[null,null,null,null,null,null,null,null,null,null,null,null,null,null,null,null,null,null,null,null,null,null,null,null,null,null,"TANZANIA","TZ"]
[null,null,null," 81. Data wypełnienia (dzień - miesiąc - rok)",null,null,null,null,null,null,null,null,null,null,null," 82. Podpis podatnika / osoby reprezentującej podatnika",null,null,null,null,null,null,null,null,null,null,"TOGO","TG"]
[null,null,null,null,null,null,null,null,null,null,null,null,null,null,null,null,null,null,null,null,null,null,null,null,null,null,"TOKELAU","TK"]
[null,null,null,null,null,null,null,null,null,null,null,null,null,null,null,null,null,null,null,null,null,null,null,null,null,null,"TONGA","TO"]
[null,null," H. ADNOTACJE ORGANU PODATKOWEGO",null,null,null,null,null,null,null,null,null,null,null,null,null,null,null,null,null,null,null,null,null,null,null,"TRYNIDAD I TOBAGO","TT"]
[null,null,null," 83. Uwagi organu podatkowego",null,null,null,null,null,null,null,null,null,null,null,null,null,null,null,null,null,null,null,null,null,null,"TUNEZJA","TN"]
[null,null,null,null,null,null,null,null,null,null,null,null,null,null,null,null,null,null,null,null,null,null,null,null,null,null,"TURCJA","TR"]
[null,null,"IN-1(1)",null,null,"4/5",null,null,null,null,null,null,null,null,null,null,null,null,null,null,null,null,null,null,null,null,"TURKMENISTAN","TM"]
[null,null,null,null,null,null,null,null,null,null,null,null,null,null,null,null,null,null,null,null,null,null,null,null,null,null,"TUVALU","TV"]
[null,null,null,null,null,null,null,null,null,null,null,null,null,null,null,null,null,null,null,null,null,null,null,null,null,null,"UGANDA","UG"]
[null,null,null,null,null,null,null,null,null,null,null,null,null,null,null,null,null,null,null,null,null,null,null,null,null,null,"UKRAINA","UA"]
[null,null," WYPEŁNIĆ DUŻYMI, DRUKOWANYMI LITERAMI, CZARNYM LUB NIEBIESKIM KOLOREM.",null,null,null,null,null,null,null,null,null,null,null,null,null,null,null,null,null,null,null,null,null,null,null,"URUGWAJ","UY"]
[null,null," Objaśnienia",null,null,null,null,null,null,null,null,null,null,null,null,null,null,null,null,null,null,null,null,null,null,null,"UZBEKISTAN","UZ"]
[null,null,"1)","    Numer PESEL wpisują podatnicy będący osobami fizycznymi objętymi rejestrem PESEL, nieprowadzący działalności gospodarczej",null,null,null,null,null,null,null,null,null,null,null,null,null,null,null,null,null,null,null,null,null,null,"VANUATU","VU"]
[null,null,null,"    lub niebędący zarejestrowanymi podatnikami podatku od towarów i usług. Identyfikator podatkowy NIP wpisują pozostali podatnicy.",null,null,null,null,null,null,null,null,null,null,null,null,null,null,null,null,null,null,null,null,null,null,"WALLIS I FUTUNA","WF"]
[null,null,"2)","    Zgodnie z przepisami Ordynacji podatkowej.",null,null,null,null,null,null,null,null,null,null,null,null,null,null,null,null,null,null,null,null,null,null,"WATYKAN","VA"]
[null,null,"3)","    Powierzchnię w ha należy wykazać wyłącznie dla gruntów pod wodami powierzchniowymi stojącymi lub wodami powierzchniowymi",null,null,null,null,null,null,null,null,null,null,null,null,null,null,null,null,null,null,null,null,null,null,"WĘGRY","HU"]
[null,null,null,"    płynącymi jezior i zbiorników sztucznych (z dokładnością do czterech miejsc po przecinku).",null,null,null,null,null,null,null,null,null,null,null,null,null,null,null,null,null,null,null,null,null,null,"WENEZUELA","VE"]
[null,null,"4)","    Niepotrzebne skreślić",null,null,null,null,null,null,null,null,null,null,null,null,null,null,null,null,null,null,null,null,null,null,"WIELKA BRYTANIA","GB"]
[null,null,"  Pouczenie",null,null,null,null,null,null,null,null,null,null,null,null,null,null,null,null,null,null,null,null,null,null,null,"WIETNAM","VN"]
[null,null,"Za podanie nieprawdy lub zatajenie prawdy i przez to narażenie podatku na uszczuplenie grozi odpowiedzialność przewidziana w Kodeksie karnym",null,null,null,null,null,null,null,null,null,null,null,null,null,null,null,null,null,null,null,null,null,null,null,"WŁOCHY","IT"]
[null,null,"skarbowym.",null,null,null,null,null,null,null,null,null,null,null,null,null,null,null,null,null,null,null,null,null,null,null,"WSCHODNI TIMOR","TL"]
[null,null,null,null,null,null,null,null,null,null,null,null,null,null,null,null,null,null,null,null,null,null,null,null,null,null,"WYBRZEŻE KOŚCI SŁONIOWEJ","CI"]
[null,null,null,null,null,null,null,null,null,null,null,null,null,null,null,null,null,null,null,null,null,null,null,null,null,null,"WYSPA BOUVETA","BV"]
[null,null,null,null,null,null,null,null,null,null,null,null,null,null,null,null,null,null,null,null,null,null,null,null,null,null,"WYSPA BOŻEGO NARODZENIA","CX"]
[null,null,null,null,null,null,null,null,null,null,null,null,null,null,null,null,null,null,null,null,null,null,null,null,null,null,"WYSPA MAN","IM"]
[null,null,null,null,null,null,null,null,null,null,null,null,null,null,null,null,null,null,null,null,null,null,null,null,null,null,"WYSPY COOKA","CK"]
[null,null,null,null,null,null,null,null,null,null,null,null,null,null,null,null,null,null,null,null,null,null,null,null,null,null,"WYSPY DZIEWICZE-USA","VI"]
[null,null,null,null,null,null,null,null,null,null,null,null,null,null,null,null,null,null,null,null,null,null,null,null,null,null,"WYSPY DZIEWICZE-W.B.","VG"]
[null,null,null,null,null,null,null,null,null,null,null,null,null,null,null,null,null,null,null,null,null,null,null,null,null,null,"WYSPY HEARD I MCDONALD","HM"]
[null,null,null,null,null,null,null,null,null,null,null,null,null,null,null,null,null,null,null,null,null,null,null,null,null,null,"WYSPY KOKOSOWE (KEELINGA)","CC"]
[null,null,null,null,null,null,null,null,null,null,null,null,null,null,null,null,null,null,null,null,null,null,null,null,null,null,"WYSPY MARSHALLA","MH"]
[null,null,null,null,null,null,null,null,null,null,null,null,null,null,null,null,null,null,null,null,null,null,null,null,null,null,"WYSPY OWCZE","FO"]
[null,null,null,null,null,null,null,null,null,null,null,null,null,null,null,null,null,null,null,null,null,null,null,null,null,null,"WYSPY SALOMONA","SB"]
[null,null,null,null,null,null,null,null,null,null,null,null,null,null,null,null,null,null,null,null,null,null,null,null,null,null,"WYSPY ŚWIĘTEGO TOMASZA I KSIĄŻĘCA","ST"]
[null,null,null,null,null,null,null,null,null,null,null,null,null,null,null,null,null,null,null,null,null,null,null,null,null,null,"WYSPY TURKS I CAICOS","TC"]
[null,null,null,null,null,null,null,null,null,null,null,null,null,null,null,null,null,null,null,null,null,null,null,null,null,null,"ZAMBIA","ZM"]
[null,null,null,null,null,null,null,null,null,null,null,null,null,null,null,null,null,null,null,null,null,null,null,null,null,null,"ZIELONY PRZYLĄDEK","CV"]
[null,null,null,null,null,null,null,null,null,null,null,null,null,null,null,null,null,null,null,null,null,null,null,null,null,null,"ZIMBABWE","ZW"]
[null,null,null,null,null,null,null,null,null,null,null,null,null,null,null,null,null,null,null,null,null,null,null,null,null,null,"ZJEDNOCZONE EMIRATY ARABSKIE","AE"]
[]
[]
[]
[]
[]
[]
[]
[]
[]
[]
[]
[]
[]
[]
[]
[]
[]
[]
[]
[]
[]
[]
[]
[]
[]
[]
[]
[]
[]
[]
[]
[]
[]
[]
[]
[null,null,null,null,null,null,null,null,null,null,null,null,null,null,null,null,null,null,null,null,"IN-1(1)",null,null,"5/5"]

{"sheet":"ZIN-1","index":1,"n_rows":67,"n_cols":24,"rows_kept":67,"cut":false,"hidden":false,"merged":[[66,2,66,3],[66,5,66,18],[19,2,20,2],[19,3,20,9],[19,10,19,11],[20,10,20,11],[19,12,20,13],[19,14,20,14],[54,2,54,18],[53,3,53,9],[53,10,53,11],[53,12,53,13],[53,16,53,18],[43,12,44,13],[43,14,44,14],[43,16,44,18],[43,2,44,2],[43,3,44,9],[55,16,55,18],[56,16,56,18],[56,12,56,13],[56,9,56,11],[55,3,55,6],[55,7,55,8],[64,3,64,6],[64,7,64,8],[64,9,64,11],[64,12,64,13],[64,16,64,18],[63,3,63,6],[63,7,63,8],[43,10,43,11],[44,10,44,11],[55,9,55,11],[55,12,55,13],[56,7,56,8],[56,3,56,6],[45,12,45,13],[45,10,45,11],[45,3,45,9],[63,9,63,11],[63,12,63,13],[61,16,61,18],[62,3,62,6],[62,7,62,8],[62,9,62,11],[62,12,62,13],[62,16,62,18],[61,3,61,6],[61,7,61,8],[63,16,63,18],[61,9,61,11],[61,12,61,13],[59,16,59,18],[60,3,60,6],[60,7,60,8],[60,9,60,11],[60,12,60,13],[60,16,60,18],[59,3,59,6],[59,7,59,8],[59,9,59,11],[59,12,59,13],[57,16,57,18],[58,3,58,6],[58,7,58,8],[58,9,58,11],[58,12,58,13],[58,16,58,18],[57,3,57,6],[57,7,57,8],[49,10,49,11],[49,12,49,13],[49,16,49,18],[50,3,50,9],[50,10,50,11],[50,12,50,13],[50,16,50,18],[49,3,49,9],[57,9,57,11],[57,12,57,13],[52,10,52,11],[52,12,52,13],[52,16,52,18],[51,3,51,9],[51,10,51,11],[51,12,51,13],[51,16,51,18],[52,3,52,9],[46,3,46,9],[46,10,46,11],[46,12,46,13],[46,16,46,18],[45,16,45,18],[29,3,29,9],[29,10,29,11],[29,12,29,13],[29,16,29,18],[40,2,40,18],[35,3,35,18],[31,3,31,18],[32,3,32,18],[33,3,33,18],[34,3,34,18],[41,2,41,18],[42,2,42,18],[37,2,37,18],[36,2,36,16],[28,3,28,9],[28,10,28,11],[28,12,28,13],[28,16,28,18],[30,3,30,18],[39,2,39,18],[21,3,21,9],[14,11,14,18],[15,11,15,18],[24,10,24,11],[24,12,24,13],[24,16,24,18],[25,3,25,9],[25,10,25,11],[25,12,25,13],[25,16,25,18],[19,16,20,18],[21,16,21,18],[47,10,47,11],[47,12,47,13],[47,16,47,18],[48,3,48,9],[48,10,48,11],[48,12,48,13],[48,16,48,18],[67,2,67,18],[4,2,4,5],[4,6,4,7],[4,8,4,12],[5,6,5,12],[5,2,5,5],[4,13,5,18],[9,2,10,16],[65,2,65,18],[47,3,47,9],[21,12,21,13],[18,2,18,18],[12,2,12,18],[13,2,13,18],[16,2,16,18],[17,2,17,18],[21,10,21,11],[23,12,23,13],[23,16,23,18],[38,1,38,19],[22,16,22,18],[22,12,22,13],[22,10,22,11],[22,3,22,9],[23,3,23,9],[23,10,23,11],[24,3,24,9],[27,3,27,9],[27,10,27,11],[27,12,27,13],[27,16,27,18],[26,3,26,9],[26,10,26,11],[26,12,26,13],[26,16,26,18],[10,17,10,18],[14,3,14,10],[15,3,15,10],[11,2,11,18],[1,2,1,18],[2,2,2,18],[0,2,0,18],[9,17,9,18],[3,2,3,18],[6,2,6,18],[7,2,7,18],[8,2,8,18]]}
[null,null,null,null,null,null,null,null,null,null,null,null,null,null,null,null,null,null,null,null,null,null,null,"własność"]
[null,null,null,null,null,null,null,null,null,null,null,null,null,null,null,null,null,null,null,null,null,null,null,"użytkowanie wieczyste"]
[null,null," WYPEŁNIĆ DUŻYMI, DRUKOWANYMI LITERAMI, CZARNYM LUB NIEBIESKIM KOLOREM.",null,null,null,null,null,null,null,null,null,null,null,null,null,null,null,null,null,null,null,null,"posiadanie samoistne"]
[null,null,null,null,null,null,null,null,null,null,null,null,null,null,null,null,null,null,null,null,null,null,null,"posiadanie zależne"]
[null,null," 1. Identyfikator podatkowy NIP",null,null,null," /numer PESEL",null," (niepotrzebne skreślić)",null,null,null,null," 2. Nr dokumentu",null,null,null,null,null,null,null,null,null,"posiadanie bez tytułu prawnego"]
[null,null,null,null,null,null,{"$f":"'IN-1'!E7","v":0}]
[null,null,"    ZIN-1"]
[null,null," ZAŁĄCZNIK DO INFORMACJI O NIERUCHOMOŚCIACH I OBIEKTACH BUDOWLANYCH"]
[null,null,"- DANE O PRZEDMIOTACH OPODATKOWANIA PODLEGAJĄCYCH OPODATKOWANIU"]
[null,null,null,null,null,null,null,null,null,null,null,null,null,null,null,null,null," 3. Nr załącznika"]
[null,null,null,null,null,null,null,null,null,null,null,null,null,null,null,null,null,1]
[]
[]
[null,null," A. DANE PODATNIKA WSKAZANEGO W CZĘŚCI C.1 INFORMACJI IN-1"]
[null,null,null," 4. Nazwisko",null,null,null,null,null,null,null," 5. Pierwsze imię"]
[null,null,null,{"$f":"'IN-1'!D35","v":0},null,null,null,null,null,null,null,{"$f":"'IN-1'!P35","v":0}]
[]
[null,null," B. DANE O POSZCZEGÓLNYCH PRZEDMIOTACH OPODATKOWANIA PODLEGAJĄCYCH OPODATKOWANIU"]
[null,null," B.1. GRUNTY"]
[null,null," Lp."," Położenie (adres, w tym dzielnica)",null,null,null,null,null,null," Nr księgi wieczystej",null,"Nr obrębu\n(arkusza\nmapy)2)",null," Nr działki","Powierzchnia w m2 /","Forma władania4)"]
[null,null,null,null,null,null,null,null,null,null," (zbioru dokumentów)",null,null,null,null,"ha3)"]
[null,null,null,"a",null,null,null,null,null,null,"b",null,"c",null,"d","e","f"]
[null,null,1]
[null,null,2]
[null,null,3]
[null,null,4]
[null,null,5]
[null,null,6]
[null,null,7]
[null,null,8]
[null,null,"1)","     Numer PESEL wpisują podatnicy będący osobami fizycznymi objętymi rejestrem PESEL, nieprowadzący działalności gospodarczej lub niebędący zarejestrowanymi podatnikami podatku od towarów i usług."]
[null,null,null,"    Identyfikator podatkowy NIP wpisują pozostali podatnicy."]
[null,null,"2)","    Numer obrębu należy podać wraz z numerem arkusza mapy ewidencyjnej w przypadku, gdy działki numerowane są w ramach arkusza mapy."]
[null,null,"3)","    Powierzchnię w ha należy wykazać wyłącznie w przypadku gruntów pod wodami powierzchniowymi stojącymi lub wodami powierzchniowymi płynącymi jezior i zbiorników sztucznych (z dokładnością do"]
[null,null,null,"    czterech miejsc po przecinku)."]
[null,null,"4)","    Należy podać jedną z form władania: własność, użytkowanie wieczyste, posiadanie samoistne, posiadanie zależne lub posiadanie bez tytułu prawnego."]
[null,null,"Formularze podatkowe w Excelu  www.pit.waw.pl",null,null,null,null,null,null,null,null,null,null,null,null,null,null," ZIN-1(1)","1/2"]
[]
[]
[]
[null,null," WYPEŁNIĆ DUŻYMI, DRUKOWANYMI LITERAMI, CZARNYM LUB NIEBIESKIM KOLOREM."]
[]
[null,null," B.2. BUDYNKI LUB ICH CZĘŚCI"]
[null,null," Lp."," Położenie (adres, w tym dzielnica)",null,null,null,null,null,null," Nr księgi wieczystej",null,"Nr obrębu\n(arkusza\nmapy)2)",null," Nr działki","Powierzchnia w m2 /","Forma władania4)"]
[null,null,null,null,null,null,null,null,null,null," (zbioru dokumentów)",null,null,null,null,"ha3)"]
[null,null,null,"a",null,null,null,null,null,null,"b",null,"c",null,"d","e","f"]
[null,null,1]
[null,null,2]
[null,null,3]
[null,null,4]
[null,null,5]
[null,null,6]
[null,null,7]
[null,null,8]
[null,null," B.3. BUDOWLE LUB ICH CZĘŚCI ZWIĄZANE Z PROWADZENIEM DZIAŁALNOŚCI GOSPODARCZEJ"]
[null,null," Lp."," Nazwa budowli",null,null,null," Nr inwentarzowy",null," Położenie (adres, w tym dzielnica)",null,null,"Nr obrębu\n(arkusza\nmapy)2)",null," Nr działki"," Wartość w zł","Forma władania4)"]
[null,null,null,"a",null,null,null,"b",null,"c",null,null,"d",null,"e","f","g"]
[null,null,1]
[null,null,2]
[null,null,3]
[null,null,4]
[null,null,5]
[null,null,6]
[null,null,7]
[null,null,8]
[]
[null,null," ZIN-1(1)",null,"2/2"]

{"sheet":"ZIN-2","index":2,"n_rows":68,"n_cols":19,"rows_kept":68,"cut":false,"hidden":false,"merged":[[0,2,0,18],[3,2,3,18],[9,17,9,18],[10,17,10,18],[12,2,12,18],[7,2,7,18],[8,2,8,18],[23,12,23,13],[23,16,23,18],[21,12,21,13],[18,2,18,18],[13,2,13,18],[16,2,16,18],[1,2,1,18],[2,2,2,18],[14,3,14,10],[15,3,15,10],[11,2,11,18],[68,2,68,18],[4,2,4,5],[4,6,4,7],[4,8,4,12],[5,6,5,12],[5,2,5,5],[4,13,5,18],[9,2,10,16],[17,2,17,18],[21,10,21,11],[66,2,66,18],[48,3,48,9],[48,10,48,11],[48,12,48,13],[48,16,48,18],[49,3,49,9],[49,10,49,11],[49,12,49,13],[49,16,49,18],[50,3,50,9],[23,10,23,11],[24,3,24,9],[24,10,24,11],[6,2,6,18],[26,12,26,13],[26,16,26,18],[21,3,21,9],[14,11,14,18],[15,11,15,18],[24,16,24,18],[24,12,24,13],[22,16,22,18],[22,12,22,13],[22,10,22,11],[22,3,22,9],[23,3,23,9],[47,12,47,13],[47,16,47,18],[50,10,50,11],[50,12,50,13],[50,16,50,18],[46,16,46,18],[29,3,29,9],[29,10,29,11],[29,12,29,13],[29,16,29,18],[41,2,41,18],[42,2,42,18],[43,2,43,18],[36,2,36,18],[38,2,38,18],[35,3,35,18],[31,3,31,18],[32,3,32,18],[33,3,33,18],[34,3,34,18],[58,9,58,11],[51,3,51,9],[51,10,51,11],[51,12,51,13],[51,16,51,18],[53,10,53,11],[53,12,53,13],[53,16,53,18],[52,3,52,9],[52,10,52,11],[52,12,52,13],[63,9,63,11],[63,12,63,13],[63,16,63,18],[62,3,62,6],[62,7,62,8],[62,9,62,11],[58,12,58,13],[60,16,60,18],[61,3,61,6],[61,7,61,8],[61,9,61,11],[61,12,61,13],[61,16,61,18],[60,3,60,6],[60,7,60,8],[60,9,60,11],[58,16,58,18],[59,3,59,6],[59,7,59,8],[59,9,59,11],[59,12,59,13],[59,16,59,18],[58,3,58,6],[58,7,58,8],[64,12,64,13],[67,2,67,3],[67,5,67,18],[19,2,20,2],[19,3,20,9],[19,10,19,11],[20,10,20,11],[19,12,20,13],[19,14,20,14],[19,16,20,18],[62,12,62,13],[64,16,64,18],[65,3,65,6],[65,7,65,8],[65,9,65,11],[65,12,65,13],[65,16,65,18],[64,3,64,6],[64,7,64,8],[64,9,64,11],[60,12,60,13],[62,16,62,18],[63,3,63,6],[63,7,63,8],[21,16,21,18],[37,2,37,16],[44,12,45,13],[44,14,45,14],[44,16,45,18],[44,2,45,2],[44,3,45,9],[44,10,44,11],[45,10,45,11],[40,2,40,18],[27,3,27,9],[27,10,27,11],[27,12,27,13],[27,16,27,18],[28,3,28,9],[28,10,28,11],[28,12,28,13],[28,16,28,18],[25,3,25,9],[25,10,25,11],[25,12,25,13],[25,16,25,18],[26,3,26,9],[26,10,26,11],[56,9,56,11],[53,3,53,9],[57,7,57,8],[57,3,57,6],[30,3,30,18],[56,16,56,18],[57,16,57,18],[57,12,57,13],[57,9,57,11],[56,3,56,6],[56,7,56,8],[39,1,39,19],[56,12,56,13],[46,12,46,13],[46,10,46,11],[46,3,46,9],[55,2,55,18],[54,3,54,9],[54,10,54,11],[54,12,54,13],[54,16,54,18],[52,16,52,18],[47,3,47,9],[47,10,47,11]]}
[]
[]
[null,null," WYPEŁNIĆ DUŻYMI, DRUKOWANYMI LITERAMI, CZARNYM LUB NIEBIESKIM KOLOREM."]
[]
[null,null," 1. Identyfikator podatkowy NIP",null,null,null," /numer PESEL",null," (niepotrzebne skreślić)",null,null,null,null," 2. Nr dokumentu"]
[null,null,null,null,null,null,{"$f":"'IN-1'!E7","v":0}]
[null,null,"    ZIN-2"]
[null,null," ZAŁĄCZNIK DO INFORMACJI O NIERUCHOMOŚCIACH I OBIEKTACH BUDOWLANYCH"]
[null,null," - DANE O PRZEDMIOTACH OPODATKOWANIA ZWOLNIONYCH Z OPODATKOWANIA"]
[null,null,null,null,null,null,null,null,null,null,null,null,null,null,null,null,null," 3. Nr załącznika"]
[null,null,null,null,null,null,null,null,null,null,null,null,null,null,null,null,null,1]
[]
[]
[null,null," A. DANE PODATNIKA WSKAZANEGO W CZĘŚCI C.1 INFORMACJI IN-1"]
[null,null,null," 4. Nazwisko",null,null,null,null,null,null,null," 5. Pierwsze imię"]
[null,null,null,{"$f":"'IN-1'!D35","v":0},null,null,null,null,null,null,null,{"$f":"'IN-1'!P35","v":0}]
[]
[null,null," B. DANE O POSZCZEGÓLNYCH PRZEDMIOTACH OPODATKOWANIA ZWOLNIONYCH Z OPODATKOWANIA"]
[null,null," B.1. GRUNTY"]
[null,null," Lp."," Położenie (adres, w tym dzielnica)",null,null,null,null,null,null," Nr księgi wieczystej",null,"Nr obrębu\n(arkusza\nmapy)2)",null," Nr działki","Powierzchnia w m2 /","Podstawa prawna zwolnienia4)"]
[null,null,null,null,null,null,null,null,null,null," (zbioru dokumentów)",null,null,null,null,"ha3)"]
[null,null,null,"a",null,null,null,null,null,null,"b",null,"c",null,"d","e","f"]
[null,null,1]
[null,null,2]
[null,null,3]
[null,null,4]
[null,null,5]
[null,null,6]
[null,null,7]
[null,null,8]
[null,null,"1) ","Numer PESEL wpisują podatnicy będący osobami fizycznymi objętymi rejestrem PESEL, nieprowadzący działalności gospodarczej lub niebędący zarejestrowanymi podatnikami podatku od towarów i usług."]
[null,null,null,"dentyfikator podatkowy NIP wpisują pozostali podatnicy."]
[null,null,"2) ","Numer obrębu należy podać wraz z numerem arkusza mapy ewidencyjnej w przypadku, gdy działki numerowane są w ramach arkusza mapy."]
[null,null,"3) ","Powierzchnię w ha należy wykazać wyłącznie w przypadku gruntów pod wodami powierzchniowymi stojącymi lub wodami powierzchniowymi płynącymi jezior i zbiorników sztucznych (z dokładnością do czterech"]
[null,null,null,"miejsc po przecinku)."]
[null,null,"4) ","Należy podać jednostkę redakcyjną z ustawy lub uchwały rady gminy."]
[]
[null,null,"Formularze podatkowe w Excelu  www.pit.waw.pl",null,null,null,null,null,null,null,null,null,null,null,null,null,null," ZIN-2(1)","1/2"]
[]
[]
[]
[null,null," WYPEŁNIĆ DUŻYMI, DRUKOWANYMI LITERAMI, CZARNYM LUB NIEBIESKIM KOLOREM."]
[]
[null,null," B.2. BUDYNKI LUB ICH CZĘŚCI"]
[null,null," Lp."," Położenie (adres, w tym dzielnica)",null,null,null,null,null,null," Nr księgi wieczystej",null,"Nr obrębu\n(arkusza\nmapy)2)",null," Nr działki"," Powierzchnia użytkowa","Podstawa prawna zwolnienia4)"]
[null,null,null,null,null,null,null,null,null,null," (zbioru dokumentów)",null,null,null,null,"w m2"]
[null,null,null,"a",null,null,null,null,null,null,"b",null,"c",null,"d","e","f"]
[null,null,1]
[null,null,2]
[null,null,3]
[null,null,4]
[null,null,5]
[null,null,6]
[null,null,7]
[null,null,8]
[null,null," B.3. BUDOWLE LUB ICH CZĘŚCI ZWIĄZANE Z PROWADZENIEM DZIAŁALNOŚCI GOSPODARCZEJ"]
[null,null," Lp."," Nazwa budowli",null,null,null," Nr inwentarzowy",null," Położenie (adres, w tym dzielnica)",null,null,"Nr obrębu\n(arkusza\nmapy)2)",null," Nr działki"," Wartość w zł","Podstawa prawna zwolnienia4)"]
[null,null,null,"a",null,null,null,"b",null,"c",null,null,"d",null,"e","f","g"]
[null,null,1]
[null,null,2]
[null,null,3]
[null,null,4]
[null,null,5]
[null,null,6]
[null,null,7]
[null,null,8]
[]
[null,null," ZIN-2(1)",null,"2/2"]

{"sheet":"ZIN-3","index":3,"n_rows":249,"n_cols":23,"rows_kept":249,"cut":false,"hidden":false,"merged":[[0,2,0,17],[1,2,1,17],[2,2,2,17],[6,2,6,17],[7,2,7,17],[8,2,8,17],[4,8,4,9],[16,3,16,10],[17,3,17,10],[16,11,16,17],[17,11,17,17],[18,3,18,10],[19,3,19,10],[18,11,18,17],[19,11,19,17],[9,2,9,17],[10,2,10,17],[11,2,11,17],[20,3,20,17],[26,7,26,11],[27,7,27,11],[21,3,21,17],[23,3,23,8],[24,3,24,8],[23,13,23,17],[24,13,24,17],[22,2,22,17],[26,12,26,17],[23,9,23,12],[24,9,24,12],[29,3,29,7],[28,8,28,14],[29,8,29,14],[27,12,27,17],[28,3,28,7],[26,3,26,6],[27,3,27,6],[29,16,29,17],[38,11,38,17],[34,3,34,6],[34,7,34,11],[34,12,34,17],[35,3,35,7],[35,8,35,14],[35,16,35,17],[28,16,28,17],[30,3,30,10],[31,3,31,10],[30,11,30,17],[31,11,31,17],[33,3,33,6],[33,7,33,11],[33,12,33,17],[53,3,53,7],[53,8,53,14],[53,16,53,17],[54,3,54,7],[54,8,54,14],[54,16,54,17],[51,3,51,6],[51,7,51,11],[51,12,51,17],[52,3,52,6],[52,7,52,11],[52,12,52,17],[55,3,55,10],[55,11,55,17],[56,3,56,10],[56,11,56,17],[65,3,65,6],[65,7,65,11],[65,12,65,17],[64,2,64,17],[63,2,63,17],[60,1,60,18],[72,2,72,17],[73,2,73,17],[74,2,74,17],[75,2,75,17],[76,2,76,17],[77,2,77,17],[71,2,71,17],[57,2,57,17],[58,2,58,13],[58,14,58,16],[59,2,59,17],[69,3,69,10],[69,11,69,17],[70,3,70,10],[70,11,70,17],[67,3,67,7],[66,3,66,6],[66,7,66,11],[66,12,66,17],[67,8,67,14],[67,16,67,17],[68,3,68,7],[68,8,68,14],[68,16,68,17],[84,2,84,17],[85,2,85,17],[86,2,86,17],[87,2,87,17],[88,2,88,17],[89,2,89,17],[78,2,78,17],[79,2,79,17],[80,2,80,17],[81,2,81,17],[82,2,82,17],[83,2,83,17],[99,2,99,17],[100,2,100,17],[101,2,101,17],[90,2,90,17],[91,2,91,17],[92,2,92,17],[93,2,93,17],[94,2,94,17],[95,2,95,17],[123,2,123,17],[124,2,124,17],[126,2,126,17],[125,2,125,3],[125,6,125,17],[125,4,125,5],[114,2,114,17],[115,2,115,17],[116,2,116,17],[117,2,117,17],[118,2,118,17],[119,2,119,17],[61,2,61,17],[62,2,62,17],[48,3,48,8],[48,13,48,17],[41,3,41,10],[41,11,41,17],[120,2,120,17],[121,2,121,17],[122,2,122,17],[108,2,108,17],[109,2,109,17],[110,2,110,17],[111,2,111,17],[112,2,112,17],[113,2,113,17],[102,2,102,17],[103,2,103,17],[104,2,104,17],[105,2,105,17],[106,2,106,17],[107,2,107,17],[96,2,96,17],[97,2,97,17],[98,2,98,17],[47,2,47,17],[50,2,50,17],[49,3,49,8],[49,13,49,17],[48,9,48,12],[49,9,49,12],[46,3,46,17],[44,3,44,10],[25,2,25,17],[32,2,32,17],[39,2,39,17],[40,2,40,17],[42,3,42,10],[42,11,42,17],[44,11,44,17],[45,3,45,17],[43,3,43,10],[43,11,43,17],[36,3,36,7],[36,8,36,14],[36,16,36,17],[37,3,37,10],[37,11,37,17],[38,3,38,10],[3,2,3,17],[4,10,5,17],[14,2,14,17],[15,2,15,17],[12,3,12,10],[13,3,13,10],[12,11,12,17],[13,11,13,17],[4,5,4,7],[4,2,4,4],[5,2,5,9]]}
[null,null,null,null,null,null,null,null,null,null,null,null,null,null,null,null,null,null,null,null,"POLSKA",null,"DOLNOŚLĄSKIE"]
[null,null,null,null,null,null,null,null,null,null,null,null,null,null,null,null,null,null,null,null,"AFGANISTAN",null,"KUJAWSKO-POMORSKIE"]
[null,null," WYPEŁNIĆ DUŻYMI, DRUKOWANYMI LITERAMI, CZARNYM LUB NIEBIESKIM KOLOREM.",null,null,null,null,null,null,null,null,null,null,null,null,null,null,null,null,null,"ALAND ISLANDS",null,"LUBELSKIE"]
[null,null,null,null,null,null,null,null,null,null,null,null,null,null,null,null,null,null,null,null,"ALBANIA",null,"LUBUSKIE"]
[null,null," 1. Identyfikator podatkowy NIP",null,null,"/numer PESEL",null,null,"(niepotrzebne skreślić)1)",null," 2. Nr dokumentu",null,null,null,null,null,null,null,null,null,"ALGIERIA",null,"ŁÓDZKIE"]
[null,null,{"$f":"'IN-1'!E7","v":0},null,null,null,null,null,null,null,null,null,null,null,null,null,null,null,null,null,"ANDORA",null,"MAŁOPOLSKIE"]
[null,null,"ZIN-3",null,null,null,null,null,null,null,null,null,null,null,null,null,null,null,null,null,"ANGOLA",null,"MAZOWIECKIE"]
[null,null,"ZAŁĄCZNIK DO INFORMACJI O NIERUCHOMOŚCIACH I OBIEKTACH BUDOWLANYCH",null,null,null,null,null,null,null,null,null,null,null,null,null,null,null,null,null,"ANGUILLA",null,"OPOLSKIE"]
[null,null," - DANE POZOSTAŁYCH PODATNIKÓW",null,null,null,null,null,null,null,null,null,null,null,null,null,null,null,null,null,"ANTARKTYDA",null,"PODKARPACKIE"]
[null,null,null,null,null,null,null,null,null,null,null,null,null,null,null,null,null,null,null,null,"ANTIGUA I BARBUDA",null,"PODLASKIE"]
[null,null,null,null,null,null,null,null,null,null,null,null,null,null,null,null,null,null,null,null,"ANTYLE HOLENDERSKIE",null,"POMORSKIE"]
[null,null," A. DANE PODATNIKA WSKAZANEGO W CZĘŚCI C.1 INFORMACJI IN-1",null,null,null,null,null,null,null,null,null,null,null,null,null,null,null,null,null,"ARABIA SAUDYJSKA",null,"ŚLĄSKIE"]
[null,null,null," 3. Nazwisko",null,null,null,null,null,null,null," 4. Pierwsze imię",null,null,null,null,null,null,null,null,"ARGENTYNA",null,"ŚWIĘTOKRZYSKIE"]
[null,null,null,{"$f":"'IN-1'!D35","v":0},null,null,null,null,null,null,null,{"$f":"'IN-1'!P35","v":0},null,null,null,null,null,null,null,null,"ARMENIA",null,"WARMIŃSKO-MAZURSKIE"]
[null,null,null,null,null,null,null,null,null,null,null,null,null,null,null,null,null,null,null,null,"ARUBA",null,"WIELKOPOLSKIE"]
[null,null," B. DANE IDENTYFIKACYJNE PODATNIKA WSKAZANEGO W CZĘŚCI G.2 INFORMACJI IN-1",null,null,null,null,null,null,null,null,null,null,null,null,null,null,null,null,null,"AUSTRALIA",null,"ZACHODNIOPOMORSKIE"]
[null,null,null," 5. Nazwisko",null,null,null,null,null,null,null," 6. Pierwsze imię",null,null,null,null,null,null,null,null,"AUSTRIA"]
[null,null,null,{"$f":"'IN-1'!P205","v":0},null,null,null,null,null,null,null,{"$f":"'IN-1'!D205","v":0},null,null,null,null,null,null,null,null,"AZERBEJDŻAN"]
[null,null,null," 7. Identyfikator podatkowy NIP1)",null,null,null,null,null,null,null," 8. Numer PESEL1)",null,null,null,null,null,null,null,null,"BAHAMY"]
[null,null,null,null,null,null,null,null,null,null,null,null,null,null,null,null,null,null,null,null,"BAHRAJN"]
[null,null,null," 9. Identyfikator REGON (w przypadku osób fizycznych REGON podaje się, o ile zost ał nadany)",null,null,null,null,null,null,null,null,null,null,null,null,null,null,null,null,"BANGLADESZ"]
[null,null,null,null,null,null,null,null,null,null,null,null,null,null,null,null,null,null,null,null,"BARBADOS"]
[null,null,"Pola 10, 11, 12 wypełnia osoba fizyczna w przypadku, gdy numer PESEL nie został nadany.",null,null,null,null,null,null,null,null,null,null,null,null,null,null,null,null,null,"BELGIA"]
[null,null,null," 10. Data urodzenia (dzień-miesiąc-rok)",null,null,null,null,null," 11. Imię ojca",null,null,null," 12. Imię matki",null,null,null,null,null,null,"BELIZE"]
[null,null,null,null,null,null,null,null,null,null,null,null,null,null,null,null,null,null,null,null,"BENIN"]
[null,null," B.1. ADRES ZAMIESZKANIA",null,null,null,null,null,null,null,null,null,null,null,null,null,null,null,null,null,"BERMUDY"]
[null,null,null," 13. Kraj",null,null,null," 14. Województwo",null,null,null,null," 15. Powiat",null,null,null,null,null,null,null,"BHUTAN"]
[null,null,null,null,null,null,null,null,null,null,null,null,null,null,null,null,null,null,null,null,"BIAŁORUŚ"]
[null,null,null," 16. Gmina",null,null,null,null," 17. Ulica",null,null,null,null,null,null," 18. Nr domu"," 19. Nr lokalu",null,null,null,"BOLIWIA"]
[null,null,null,null,null,null,null,null,null,null,null,null,null,null,null,null,null,null,null,null,"BOŚNIA I HERCEGOWINA"]
[null,null,null," 20. Miejscowość",null,null,null,null,null,null,null," 21. Kod pocztowy",null,null,null,null,null,null,null,null,"BOTSWANA"]
[null,null,null,null,null,null,null,null,null,null,null,null,null,null,null,null,null,null,null,null,"BRAZYLIA"]
[null,null," B.2. ADRES DO DORĘCZEŃ Należy wypełnić tylko wówczas, gdy adres do doręczeń jest inny niż w części B.1.",null,null,null,null,null,null,null,null,null,null,null,null,null,null,null,null,null,"BRUNEI DARUSSALAM"]
[null,null,null," 22. Kraj",null,null,null," 23. Województwo",null,null,null,null," 24. Powiat",null,null,null,null,null,null,null,"BRYTYJSKIE TERYTORIUM OCEANU INDYJSKIEGO"]
[null,null,null,null,null,null,null,null,null,null,null,null,null,null,null,null,null,null,null,null,"BUŁGARIA"]
[null,null,null," 25. Gmina",null,null,null,null," 26. Ulica",null,null,null,null,null,null," 27. Nr domu"," 28. Nr lokalu",null,null,null,"BURKINA FASO"]
[null,null,null,null,null,null,null,null,null,null,null,null,null,null,null,null,null,null,null,null,"BURUNDI"]
[null,null,null," 29. Miejscowość",null,null,null,null,null,null,null," 30. Kod pocztowy",null,null,null,null,null,null,null,null,"CEUTA"]
[null,null,null,null,null,null,null,null,null,null,null,null,null,null,null,null,null,null,null,null,"CHILE"]
[null,null,null,null,null,null,null,null,null,null,null,null,null,null,null,null,null,null,null,null,"CHINY"]
[null,null," C. DANE IDENTYFIKACYJNE PODATNIKA WSKAZANEGO W CZĘŚCI G.3 INFORMACJI IN-1",null,null,null,null,null,null,null,null,null,null,null,null,null,null,null,null,null,"CHORWACJA"]
[null,null,null," 31. Nazwisko",null,null,null,null,null,null,null," 32. Pierwsze imię",null,null,null,null,null,null,null,null,"CYPR"]
[null,null,null,{"$f":"'IN-1'!P210","v":0},null,null,null,null,null,null,null,{"$f":"'IN-1'!D210","v":0},null,null,null,null,null,null,null,null,"CZAD"]
[null,null,null," 33. Identyfikator podatkowy NIP1)",null,null,null,null,null,null,null," 34. Numer PESEL1)",null,null,null,null,null,null,null,null,"CZARNOGÓRA"]
[null,null,null,null,null,null,null,null,null,null,null,null,null,null,null,null,null,null,null,null,"DANIA"]
[null,null,null," 35. Identyfikator REGON (w przypadku osób fizycznych REGON podaje się, o ile zo stał nadany)",null,null,null,null,null,null,null,null,null,null,null,null,null,null,null,null,"DOMINIKA"]
[null,null,null,null,null,null,null,null,null,null,null,null,null,null,null,null,null,null,null,null,"DOMINIKANA"]
[null,null,"Pola 36, 37, 38 wypełnia osoba fizyczna w przypadku, gdy numer PESEL nie został nadany.",null,null,null,null,null,null,null,null,null,null,null,null,null,null,null,null,null,"DŻIBUTI"]
[null,null,null," 36. Data urodzenia (dzień-miesiąc-rok)",null,null,null,null,null," 37. Imię ojca",null,null,null," 38. Imię matki",null,null,null,null,null,null,"EGIPT"]
[null,null,null,null,null,null,null,null,null,null,null,null,null,null,null,null,null,null,null,null,"EKWADOR"]
[null,null," C.1. ADRES ZAMIESZKANIA",null,null,null,null,null,null,null,null,null,null,null,null,null,null,null,null,null,"ERYTREA"]
[null,null,null," 39. Kraj",null,null,null," 40. Województwo",null,null,null,null," 41. Powiat",null,null,null,null,null,null,null,"ESTONIA"]
[null,null,null,null,null,null,null,null,null,null,null,null,null,null,null,null,null,null,null,null,"ETIOPIA"]
[null,null,null," 42. Gmina",null,null,null,null," 43. Ulica",null,null,null,null,null,null," 44. Nr domu"," 45. Nr lokalu",null,null,null,"FALKLANDY"]
[null,null,null,null,null,null,null,null,null,null,null,null,null,null,null,null,null,null,null,null,"FIDŻI REPUBLIKA"]
[null,null,null," 46. Miejscowość",null,null,null,null,null,null,null," 47. Kod pocztowy",null,null,null,null,null,null,null,null,"FILIPINY"]
[null,null,null,null,null,null,null,null,null,null,null,null,null,null,null,null,null,null,null,null,"FINLANDIA"]
[null,null,null,null,null,null,null,null,null,null,null,null,null,null,null,null,null,null,null,null,"FRANCJA"]
[null,null,"Formularze podatkowe w Excelu  www.pit.waw.pl",null,null,null,null,null,null,null,null,null,null,null,"ZIN-3(1)",null,null,"1/2",null,null,"FRANCUSKIE TERYTORIUM POŁUDNIOWE"]
[null,null,null,null,null,null,null,null,null,null,null,null,null,null,null,null,null,null,null,null,"GABON"]
[null,null,null,null,null,null,null,null,null,null,null,null,null,null,null,null,null,null,null,null,"GAMBIA"]
[null,null,null,null,null,null,null,null,null,null,null,null,null,null,null,null,null,null,null,null,"GHANA"]
[null,null," WYPEŁNIĆ DUŻYMI, DRUKOWANYMI LITERAMI, CZARNYM LUB NIEBIESKIM KOLOREM.",null,null,null,null,null,null,null,null,null,null,null,null,null,null,null,null,null,"GIBRALTAR"]
[null,null,null,null,null,null,null,null,null,null,null,null,null,null,null,null,null,null,null,null,"GRECJA"]
[null,null," C.2. ADRES DO DORĘCZEŃ Należy wypełnić tylko wówczas, gdy adres do doręczeń jest inny niż w części C.1.",null,null,null,null,null,null,null,null,null,null,null,null,null,null,null,null,null,"GRENADA"]
[null,null,null," 48. Kraj",null,null,null," 49. Województwo",null,null,null,null," 50. Powiat",null,null,null,null,null,null,null,"GRENLANDIA"]
[null,null,null,null,null,null,null,null,null,null,null,null,null,null,null,null,null,null,null,null,"GRUZJA"]
[null,null,null," 51. Gmina",null,null,null,null," 52. Ulica",null,null,null,null,null,null," 53. Nr domu"," 54. Nr lokalu",null,null,null,"GUAM"]
[null,null,null,null,null,null,null,null,null,null,null,null,null,null,null,null,null,null,null,null,"GUERNSEY"]
[null,null,null," 55. Miejscowość",null,null,null,null,null,null,null," 56. Kod pocztowy",null,null,null,null,null,null,null,null,"GUJANA"]
[null,null,null,null,null,null,null,null,null,null,null,null,null,null,null,null,null,null,null,null,"GUJANA FRANCUSKA"]
[null,null,"              1)      Numer PESEL wpisują podatnicy będący osobami fizycznymi objętymi rejestrem PESEL, nieprowadzący działalności gospodarczej lub niebędący",null,null,null,null,null,null,null,null,null,null,null,null,null,null,null,null,null,"GWADELUPA"]
[null,null,"                        zarejestrowanymi podatnikami podatku od towarów i usług. Identyfikator podatkowy NIP wpisują pozostali podatnicy.",null,null,null,null,null,null,null,null,null,null,null,null,null,null,null,null,null,"GWATEMALA"]
[null,null,null,null,null,null,null,null,null,null,null,null,null,null,null,null,null,null,null,null,"GWINEA"]
[null,null,null,null,null,null,null,null,null,null,null,null,null,null,null,null,null,null,null,null,"GWINEA RÓWNIKOWA"]
[null,null,null,null,null,null,null,null,null,null,null,null,null,null,null,null,null,null,null,null,"GWINEA-BISSAU"]
[null,null,null,null,null,null,null,null,null,null,null,null,null,null,null,null,null,null,null,null,"HAITI"]
[null,null,null,null,null,null,null,null,null,null,null,null,null,null,null,null,null,null,null,null,"HISZPANIA"]
[null,null,null,null,null,null,null,null,null,null,null,null,null,null,null,null,null,null,null,null,"HONDURAS"]
[null,null,null,null,null,null,null,null,null,null,null,null,null,null,null,null,null,null,null,null,"HONGKONG"]
[null,null,null,null,null,null,null,null,null,null,null,null,null,null,null,null,null,null,null,null,"INDIE"]
[null,null,null,null,null,null,null,null,null,null,null,null,null,null,null,null,null,null,null,null,"INDONEZJA"]
[null,null,null,null,null,null,null,null,null,null,null,null,null,null,null,null,null,null,null,null,"IRAK"]
[null,null,null,null,null,null,null,null,null,null,null,null,null,null,null,null,null,null,null,null,"IRAN"]
[null,null,null,null,null,null,null,null,null,null,null,null,null,null,null,null,null,null,null,null,"IRLANDIA"]
[null,null,null,null,null,null,null,null,null,null,null,null,null,null,null,null,null,null,null,null,"ISLANDIA"]
[null,null,null,null,null,null,null,null,null,null,null,null,null,null,null,null,null,null,null,null,"IZRAEL"]
[null,null,null,null,null,null,null,null,null,null,null,null,null,null,null,null,null,null,null,null,"JAMAJKA"]
[null,null,null,null,null,null,null,null,null,null,null,null,null,null,null,null,null,null,null,null,"JAPONIA"]
[null,null,null,null,null,null,null,null,null,null,null,null,null,null,null,null,null,null,null,null,"JEMEN"]
[null,null,null,null,null,null,null,null,null,null,null,null,null,null,null,null,null,null,null,null,"JERSEY"]
[null,null,null,null,null,null,null,null,null,null,null,null,null,null,null,null,null,null,null,null,"JORDANIA"]
[null,null,null,null,null,null,null,null,null,null,null,null,null,null,null,null,null,null,null,null,"KAJMANY"]
[null,null,null,null,null,null,null,null,null,null,null,null,null,null,null,null,null,null,null,null,"KAMBODŻA"]
[null,null,null,null,null,null,null,null,null,null,null,null,null,null,null,null,null,null,null,null,"KAMERUN"]
[null,null,null,null,null,null,null,null,null,null,null,null,null,null,null,null,null,null,null,null,"KANADA"]
[null,null,null,null,null,null,null,null,null,null,null,null,null,null,null,null,null,null,null,null,"KATAR"]
[null,null,null,null,null,null,null,null,null,null,null,null,null,null,null,null,null,null,null,null,"KAZACHSTAN"]
[null,null,null,null,null,null,null,null,null,null,null,null,null,null,null,null,null,null,null,null,"KENIA"]
[null,null,null,null,null,null,null,null,null,null,null,null,null,null,null,null,null,null,null,null,"KIRGISTAN"]
[null,null,null,null,null,null,null,null,null,null,null,null,null,null,null,null,null,null,null,null,"KIRIBATI"]
[null,null,null,null,null,null,null,null,null,null,null,null,null,null,null,null,null,null,null,null,"KOLUMBIA"]
[null,null,null,null,null,null,null,null,null,null,null,null,null,null,null,null,null,null,null,null,"KOMORY"]
[null,null,null,null,null,null,null,null,null,null,null,null,null,null,null,null,null,null,null,null,"KONGO"]
[null,null,null,null,null,null,null,null,null,null,null,null,null,null,null,null,null,null,null,null,"KONGO, REPUBLIKA DEMOKRATYCZNA"]
[null,null,null,null,null,null,null,null,null,null,null,null,null,null,null,null,null,null,null,null,"KOREAŃ\u0083SKA REPUBLIKA LUDOWO-DEMOKRATYCZNA"]
[null,null,null,null,null,null,null,null,null,null,null,null,null,null,null,null,null,null,null,null,"KOSOWO"]
[null,null,null,null,null,null,null,null,null,null,null,null,null,null,null,null,null,null,null,null,"KOSTARYKA"]
[null,null,null,null,null,null,null,null,null,null,null,null,null,null,null,null,null,null,null,null,"KUBA"]
[null,null,null,null,null,null,null,null,null,null,null,null,null,null,null,null,null,null,null,null,"KUWEJT"]
[null,null,null,null,null,null,null,null,null,null,null,null,null,null,null,null,null,null,null,null,"LAOS"]
[null,null,null,null,null,null,null,null,null,null,null,null,null,null,null,null,null,null,null,null,"LESOTHO"]
[null,null,null,null,null,null,null,null,null,null,null,null,null,null,null,null,null,null,null,null,"LIBAN"]
[null,null,null,null,null,null,null,null,null,null,null,null,null,null,null,null,null,null,null,null,"LIBERIA"]
[null,null,null,null,null,null,null,null,null,null,null,null,null,null,null,null,null,null,null,null,"LIBIA"]
[null,null,null,null,null,null,null,null,null,null,null,null,null,null,null,null,null,null,null,null,"LIECHTENSTEIN"]
[null,null,null,null,null,null,null,null,null,null,null,null,null,null,null,null,null,null,null,null,"LITWA"]
[null,null,null,null,null,null,null,null,null,null,null,null,null,null,null,null,null,null,null,null,"ŁOTWA"]
[null,null,null,null,null,null,null,null,null,null,null,null,null,null,null,null,null,null,null,null,"LUKSEMBURG"]
[null,null,null,null,null,null,null,null,null,null,null,null,null,null,null,null,null,null,null,null,"MACEDONIA"]
[null,null,null,null,null,null,null,null,null,null,null,null,null,null,null,null,null,null,null,null,"MADAGASKAR"]
[null,null,null,null,null,null,null,null,null,null,null,null,null,null,null,null,null,null,null,null,"MAJOTTA"]
[null,null,null,null,null,null,null,null,null,null,null,null,null,null,null,null,null,null,null,null,"MAKAU"]
[null,null,null,null,null,null,null,null,null,null,null,null,null,null,null,null,null,null,null,null,"MALAWI"]
[null,null,null,null,null,null,null,null,null,null,null,null,null,null,null,null,null,null,null,null,"MALEDIWY"]
[null,null,"ZIN-3(1)",null,"2/2",null,null,null,null,null,null,null,null,null,null,null,null,null,null,null,"MALEZJA"]
[null,null,null,null,null,null,null,null,null,null,null,null,null,null,null,null,null,null,null,null,"MALI"]
[null,null,null,null,null,null,null,null,null,null,null,null,null,null,null,null,null,null,null,null,"MALTA"]
[null,null,null,null,null,null,null,null,null,null,null,null,null,null,null,null,null,null,null,null,"MARIANY PÓŁNOCNE"]
[null,null,null,null,null,null,null,null,null,null,null,null,null,null,null,null,null,null,null,null,"MAROKO"]
[null,null,null,null,null,null,null,null,null,null,null,null,null,null,null,null,null,null,null,null,"MARTYNIKA"]
[null,null,null,null,null,null,null,null,null,null,null,null,null,null,null,null,null,null,null,null,"MAURETANIA"]
[null,null,null,null,null,null,null,null,null,null,null,null,null,null,null,null,null,null,null,null,"MAURITIUS"]
[null,null,null,null,null,null,null,null,null,null,null,null,null,null,null,null,null,null,null,null,"MEKSYK"]
[null,null,null,null,null,null,null,null,null,null,null,null,null,null,null,null,null,null,null,null,"MELILLA"]
[null,null,null,null,null,null,null,null,null,null,null,null,null,null,null,null,null,null,null,null,"MIKRONEZJA"]
[null,null,null,null,null,null,null,null,null,null,null,null,null,null,null,null,null,null,null,null,"MINOR"]
[null,null,null,null,null,null,null,null,null,null,null,null,null,null,null,null,null,null,null,null,"MOŁDOWA"]
[null,null,null,null,null,null,null,null,null,null,null,null,null,null,null,null,null,null,null,null,"MONAKO"]
[null,null,null,null,null,null,null,null,null,null,null,null,null,null,null,null,null,null,null,null,"MONGOLIA"]
[null,null,null,null,null,null,null,null,null,null,null,null,null,null,null,null,null,null,null,null,"MONTSERRAT"]
[null,null,null,null,null,null,null,null,null,null,null,null,null,null,null,null,null,null,null,null,"MOZAMBIK"]
[null,null,null,null,null,null,null,null,null,null,null,null,null,null,null,null,null,null,null,null,"MYANMAR (BURMA)"]
[null,null,null,null,null,null,null,null,null,null,null,null,null,null,null,null,null,null,null,null,"NAMIBIA"]
[null,null,null,null,null,null,null,null,null,null,null,null,null,null,null,null,null,null,null,null,"NAURU"]
[null,null,null,null,null,null,null,null,null,null,null,null,null,null,null,null,null,null,null,null,"NEPAL"]
[null,null,null,null,null,null,null,null,null,null,null,null,null,null,null,null,null,null,null,null,"NIDERLANDY (HOLANDIA)"]
[null,null,null,null,null,null,null,null,null,null,null,null,null,null,null,null,null,null,null,null,"NIEMCY"]
[null,null,null,null,null,null,null,null,null,null,null,null,null,null,null,null,null,null,null,null,"NIGER"]
[null,null,null,null,null,null,null,null,null,null,null,null,null,null,null,null,null,null,null,null,"NIGERIA"]
[null,null,null,null,null,null,null,null,null,null,null,null,null,null,null,null,null,null,null,null,"NIKARAGUA"]
[null,null,null,null,null,null,null,null,null,null,null,null,null,null,null,null,null,null,null,null,"NIUE"]
[null,null,null,null,null,null,null,null,null,null,null,null,null,null,null,null,null,null,null,null,"NORFOLK"]
[null,null,null,null,null,null,null,null,null,null,null,null,null,null,null,null,null,null,null,null,"NORWEGIA"]
[null,null,null,null,null,null,null,null,null,null,null,null,null,null,null,null,null,null,null,null,"NOWA KALEDONIA"]
[null,null,null,null,null,null,null,null,null,null,null,null,null,null,null,null,null,null,null,null,"NOWA ZELANDIA"]
[null,null,null,null,null,null,null,null,null,null,null,null,null,null,null,null,null,null,null,null,"OKUPOWANE TERYTORIUM PALESTYNY"]
[null,null,null,null,null,null,null,null,null,null,null,null,null,null,null,null,null,null,null,null,"OMAN"]
[null,null,null,null,null,null,null,null,null,null,null,null,null,null,null,null,null,null,null,null,"PAKISTAN"]
[null,null,null,null,null,null,null,null,null,null,null,null,null,null,null,null,null,null,null,null,"PALAU"]
[null,null,null,null,null,null,null,null,null,null,null,null,null,null,null,null,null,null,null,null,"PANAMA"]
[null,null,null,null,null,null,null,null,null,null,null,null,null,null,null,null,null,null,null,null,"PAPUA NOWA GWINEA"]
[null,null,null,null,null,null,null,null,null,null,null,null,null,null,null,null,null,null,null,null,"PARAGWAJ"]
[null,null,null,null,null,null,null,null,null,null,null,null,null,null,null,null,null,null,null,null,"PERU"]
[null,null,null,null,null,null,null,null,null,null,null,null,null,null,null,null,null,null,null,null,"PITCAIRN"]
[null,null,null,null,null,null,null,null,null,null,null,null,null,null,null,null,null,null,null,null,"POLINEZJA FRANCUSKA"]
[null,null,null,null,null,null,null,null,null,null,null,null,null,null,null,null,null,null,null,null,"POŁUDNIOWA GEORGIA I POŁUD.WYSPY SANDWICH"]
[null,null,null,null,null,null,null,null,null,null,null,null,null,null,null,null,null,null,null,null,"PORTUGALIA"]
[null,null,null,null,null,null,null,null,null,null,null,null,null,null,null,null,null,null,null,null,"PORTORYKO"]
[null,null,null,null,null,null,null,null,null,null,null,null,null,null,null,null,null,null,null,null,"REP.ŚRODKOWOAFRYKAŃ\u0083SKA"]
[null,null,null,null,null,null,null,null,null,null,null,null,null,null,null,null,null,null,null,null,"REPUBLIKA CZESKA"]
[null,null,null,null,null,null,null,null,null,null,null,null,null,null,null,null,null,null,null,null,"REPUBLIKA KOREI"]
[null,null,null,null,null,null,null,null,null,null,null,null,null,null,null,null,null,null,null,null,"REPUBLIKA POŁUDNIOWEJ AFRYKI"]
[null,null,null,null,null,null,null,null,null,null,null,null,null,null,null,null,null,null,null,null,"REUNION"]
[null,null,null,null,null,null,null,null,null,null,null,null,null,null,null,null,null,null,null,null,"ROSJA"]
[null,null,null,null,null,null,null,null,null,null,null,null,null,null,null,null,null,null,null,null,"RUMUNIA"]
[null,null,null,null,null,null,null,null,null,null,null,null,null,null,null,null,null,null,null,null,"RWANDA"]
[null,null,null,null,null,null,null,null,null,null,null,null,null,null,null,null,null,null,null,null,"SAHARA ZACHODNIA"]
[null,null,null,null,null,null,null,null,null,null,null,null,null,null,null,null,null,null,null,null,"SAINT BARTHELEMY"]
[null,null,null,null,null,null,null,null,null,null,null,null,null,null,null,null,null,null,null,null,"SAINT KITTS I NEVIS"]
[null,null,null,null,null,null,null,null,null,null,null,null,null,null,null,null,null,null,null,null,"SAINT LUCIA"]
[null,null,null,null,null,null,null,null,null,null,null,null,null,null,null,null,null,null,null,null,"SAINT MARTIN"]
[null,null,null,null,null,null,null,null,null,null,null,null,null,null,null,null,null,null,null,null,"SAINT VINCENT I GRENADYNY"]
[null,null,null,null,null,null,null,null,null,null,null,null,null,null,null,null,null,null,null,null,"SALWADOR"]
[null,null,null,null,null,null,null,null,null,null,null,null,null,null,null,null,null,null,null,null,"SAMOA"]
[null,null,null,null,null,null,null,null,null,null,null,null,null,null,null,null,null,null,null,null,"SAMOA AMERYKAŃ\u0083SKIE"]
[null,null,null,null,null,null,null,null,null,null,null,null,null,null,null,null,null,null,null,null,"SAN MARINO"]
[null,null,null,null,null,null,null,null,null,null,null,null,null,null,null,null,null,null,null,null,"SENEGAL"]
[null,null,null,null,null,null,null,null,null,null,null,null,null,null,null,null,null,null,null,null,"SERBIA"]
[null,null,null,null,null,null,null,null,null,null,null,null,null,null,null,null,null,null,null,null,"SESZELE"]
[null,null,null,null,null,null,null,null,null,null,null,null,null,null,null,null,null,null,null,null,"SIERRA LEONE"]
[null,null,null,null,null,null,null,null,null,null,null,null,null,null,null,null,null,null,null,null,"SINGAPUR"]
[null,null,null,null,null,null,null,null,null,null,null,null,null,null,null,null,null,null,null,null,"SŁOWACJA"]
[null,null,null,null,null,null,null,null,null,null,null,null,null,null,null,null,null,null,null,null,"SŁOWENIA"]
[null,null,null,null,null,null,null,null,null,null,null,null,null,null,null,null,null,null,null,null,"SOMALIA"]
[null,null,null,null,null,null,null,null,null,null,null,null,null,null,null,null,null,null,null,null,"SRI LANKA"]
[null,null,null,null,null,null,null,null,null,null,null,null,null,null,null,null,null,null,null,null,"SAINT PIERRE I MIQUELON"]
[null,null,null,null,null,null,null,null,null,null,null,null,null,null,null,null,null,null,null,null,"STANY ZJEDNOCZONE AMERYKI"]
[null,null,null,null,null,null,null,null,null,null,null,null,null,null,null,null,null,null,null,null,"SUAZI"]
[null,null,null,null,null,null,null,null,null,null,null,null,null,null,null,null,null,null,null,null,"SUDAN"]
[null,null,null,null,null,null,null,null,null,null,null,null,null,null,null,null,null,null,null,null,"SURINAM"]
[null,null,null,null,null,null,null,null,null,null,null,null,null,null,null,null,null,null,null,null,"SVALBARD I JAN MAYEN"]
[null,null,null,null,null,null,null,null,null,null,null,null,null,null,null,null,null,null,null,null,"ŚWIĘTA HELENA"]
[null,null,null,null,null,null,null,null,null,null,null,null,null,null,null,null,null,null,null,null,"SYRIA"]
[null,null,null,null,null,null,null,null,null,null,null,null,null,null,null,null,null,null,null,null,"SZWAJCARIA"]
[null,null,null,null,null,null,null,null,null,null,null,null,null,null,null,null,null,null,null,null,"SZWECJA"]
[null,null,null,null,null,null,null,null,null,null,null,null,null,null,null,null,null,null,null,null,"TADŻYKISTAN"]
[null,null,null,null,null,null,null,null,null,null,null,null,null,null,null,null,null,null,null,null,"TAJLANDIA"]
[null,null,null,null,null,null,null,null,null,null,null,null,null,null,null,null,null,null,null,null,"TAJWAN"]
[null,null,null,null,null,null,null,null,null,null,null,null,null,null,null,null,null,null,null,null,"TANZANIA"]
[null,null,null,null,null,null,null,null,null,null,null,null,null,null,null,null,null,null,null,null,"TOGO"]
[null,null,null,null,null,null,null,null,null,null,null,null,null,null,null,null,null,null,null,null,"TOKELAU"]
[null,null,null,null,null,null,null,null,null,null,null,null,null,null,null,null,null,null,null,null,"TONGA"]
[null,null,null,null,null,null,null,null,null,null,null,null,null,null,null,null,null,null,null,null,"TRYNIDAD I TOBAGO"]
[null,null,null,null,null,null,null,null,null,null,null,null,null,null,null,null,null,null,null,null,"TUNEZJA"]
[null,null,null,null,null,null,null,null,null,null,null,null,null,null,null,null,null,null,null,null,"TURCJA"]
[null,null,null,null,null,null,null,null,null,null,null,null,null,null,null,null,null,null,null,null,"TURKMENISTAN"]
[null,null,null,null,null,null,null,null,null,null,null,null,null,null,null,null,null,null,null,null,"TUVALU"]
[null,null,null,null,null,null,null,null,null,null,null,null,null,null,null,null,null,null,null,null,"UGANDA"]
[null,null,null,null,null,null,null,null,null,null,null,null,null,null,null,null,null,null,null,null,"UKRAINA"]
[null,null,null,null,null,null,null,null,null,null,null,null,null,null,null,null,null,null,null,null,"URUGWAJ"]
[null,null,null,null,null,null,null,null,null,null,null,null,null,null,null,null,null,null,null,null,"UZBEKISTAN"]
[null,null,null,null,null,null,null,null,null,null,null,null,null,null,null,null,null,null,null,null,"VANUATU"]
[null,null,null,null,null,null,null,null,null,null,null,null,null,null,null,null,null,null,null,null,"WALLIS I FUTUNA"]
[null,null,null,null,null,null,null,null,null,null,null,null,null,null,null,null,null,null,null,null,"WATYKAN"]
[null,null,null,null,null,null,null,null,null,null,null,null,null,null,null,null,null,null,null,null,"WĘGRY"]
[null,null,null,null,null,null,null,null,null,null,null,null,null,null,null,null,null,null,null,null,"WENEZUELA"]
[null,null,null,null,null,null,null,null,null,null,null,null,null,null,null,null,null,null,null,null,"WIELKA BRYTANIA"]
[null,null,null,null,null,null,null,null,null,null,null,null,null,null,null,null,null,null,null,null,"WIETNAM"]
[null,null,null,null,null,null,null,null,null,null,null,null,null,null,null,null,null,null,null,null,"WŁOCHY"]
[null,null,null,null,null,null,null,null,null,null,null,null,null,null,null,null,null,null,null,null,"WSCHODNI TIMOR"]
[null,null,null,null,null,null,null,null,null,null,null,null,null,null,null,null,null,null,null,null,"WYBRZEŻE KOŚCI SŁONIOWEJ"]
[null,null,null,null,null,null,null,null,null,null,null,null,null,null,null,null,null,null,null,null,"WYSPA BOUVETA"]
[null,null,null,null,null,null,null,null,null,null,null,null,null,null,null,null,null,null,null,null,"WYSPA BOŻEGO NARODZENIA"]
[null,null,null,null,null,null,null,null,null,null,null,null,null,null,null,null,null,null,null,null,"WYSPA MAN"]
[null,null,null,null,null,null,null,null,null,null,null,null,null,null,null,null,null,null,null,null,"WYSPY COOKA"]
[null,null,null,null,null,null,null,null,null,null,null,null,null,null,null,null,null,null,null,null,"WYSPY DZIEWICZE-USA"]
[null,null,null,null,null,null,null,null,null,null,null,null,null,null,null,null,null,null,null,null,"WYSPY DZIEWICZE-W.B."]
[null,null,null,null,null,null,null,null,null,null,null,null,null,null,null,null,null,null,null,null,"WYSPY HEARD I MCDONALD"]
[null,null,null,null,null,null,null,null,null,null,null,null,null,null,null,null,null,null,null,null,"WYSPY KOKOSOWE (KEELINGA)"]
[null,null,null,null,null,null,null,null,null,null,null,null,null,null,null,null,null,null,null,null,"WYSPY MARSHALLA"]
[null,null,null,null,null,null,null,null,null,null,null,null,null,null,null,null,null,null,null,null,"WYSPY OWCZE"]
[null,null,null,null,null,null,null,null,null,null,null,null,null,null,null,null,null,null,null,null,"WYSPY SALOMONA"]
[null,null,null,null,null,null,null,null,null,null,null,null,null,null,null,null,null,null,null,null,"WYSPY ŚWIĘTEGO TOMASZA I KSIĄŻĘCA"]
[null,null,null,null,null,null,null,null,null,null,null,null,null,null,null,null,null,null,null,null,"WYSPY TURKS I CAICOS"]
[null,null,null,null,null,null,null,null,null,null,null,null,null,null,null,null,null,null,null,null,"ZAMBIA"]
[null,null,null,null,null,null,null,null,null,null,null,null,null,null,null,null,null,null,null,null,"ZIELONY PRZYLĄDEK"]
[null,null,null,null,null,null,null,null,null,null,null,null,null,null,null,null,null,null,null,null,"ZIMBABWE"]
[null,null,null,null,null,null,null,null,null,null,null,null,null,null,null,null,null,null,null,null,"ZJEDNOCZONE EMIRATY ARABSKIE"]